Workbook

Sheet 確認事項
A1: NO. | B1: 確認事項 | C1: 回答 | D1: CLOSE

Sheet 変更履歴
A1: MMO観測計画作成ツール 変更履歴
A2: 日付 | B2: Ver | C2: 変更者 | D2: 変更内容
A3: 2021-08-06 | B3: 1 | C3: 山下 | D3: -
A4: 2021-08-09 | B4: 2 | C4: arare | D4: コマンド出力のmain end部分を出力するように修正した ListにMSA_HV_ON_VFB1、MSA_HV_ON_VFB2追加 Obs_sequence XOR Time行追記 コマンドの開始終了時間をOBS時間に変更
A5: 2021-08-17 | B5: 3 | C5: arare | D5: WOLの時間をG列から取得するように変更
A6: 2021-08-25 | B6: 4 | C6: arare | D6: COMMENTにmainstart,endのXDOR,XOR用追記
A7: 2021-09-27 | B7: 5 | C7: arare | D7: ＃refの対応 obserbation Aから昇順につける
A8: 2021-10-19 | B8: 6 | C8: arare | D8: ListにMSAHV追記
A9: 2021-10-21 | B9: 7 | C9: arare | D9: Listを最新にした
A10: 2022-03-08 | B10: 8 | C10: arare | D10: Listを最新にした、XDOR用コメントはプログラム改修により使用なし
A11: 2022-03-23 | B11: 9 | C11: arare | D11: List にENA HV ON追加、コメントの修正

Sheet 実行
F8: 【操作】
A9: C番号 | B9: 10 | F9: 「実行」シートの「観測作成」を押下。
A10: M番号 | B10: 631205 | F10: →「START」、「LOOP」、「END」を「obs_sequence」に貼り付けます。
F11: 「実行」シートの「時刻反映」を押下。
F12: →WOLの時間と関数エラーとなっているセルを修正します。
F13: 【注意点】
F14: 「START」、「LOOP」、「END」の"cmd count"からシート内に何行あるかを取得しているので、ここは空白がないように"0”を入力してください。
F15: もし空白があった場合、コピー範囲が小さくなってしまいます。
F16: ”WOL”シートの4行目以下は、実施するWOLのみを記載すること。 (4行目以下に、期間開始日時と終了日時の記載は不要です。)

Sheet チェック表 (hidden)
B2: コマンド作成時注意項目
B3: NO. | C3: 項目 | D3: チェック
B4: 1 | C4: 観測期間開始時に「dcsm-EF_BUS_MONI_ON」手順が入っていることを確認する。 ただし、前回の観測終了時に「dcsm-EF_BUS_MONI_OFF」を実行していない場合は確認不要。 | D4: □
B5: 2 | C5: 観測期間開始日に、観測する機器の”ON”手順が入っていることを確認する。 ただし、PWI、MGF、MAST、WPTを"ON"にする場合は、PWI、MGF、MAST、WPTよりも先にPMEが"ON"となっていること。 ※クルーズ観測中は、MEA1,HEPE,MGFのみ”ON” | D5: □
B6: 3 | C6: TLM MODEが観測前に「５」 観測終了後は「１０」 となっていることを確認する | D6: □
B7: 4 | C7: 観測時間が”86400”を超えるていないか確認する。 超えていた場合は、main計画作成時に途中ダミーコマンドを挿入すること
B8: 5 | C8: WOLの開始時刻が正しいことを確認する | D8: □
B9: 6 | C9: WOLの時間を確認 HV OFFになっていることを確認する ↓ クルーズ観測を行っている機器(HEPE、ENA、MIA、MEA、MSAのみ) フライバイを行っている機器(MSA,PWI,MGF,MEA,ENA,MIA,HEPE,MDM) | D9: □
B10: 7 | C10: WOL終了時刻＋10以降にのHVがONになっていることを確認する。 クルーズ観測を行っている機器(HEPE、ENA、MIA、MEA、MSAのみ) フライバイを行っている機器(MSA,PWI,MGF,MEA,ENA,MIA,HEPE,MDM) | D10: □
B11: 8 | C11: 観測期間最終日に、観測を行った機器の”OFF”手順が入っていることを確認する。 ただし、PWI,MGF,MAST,WPT-OFF手順の後にPME-OFF手順が入っていることを確認する。 | D11: □
B12: 9 | C12: MDP_POWEROFFのあとにdcsm-MC_ENA_MDPが入っていることを確認する。 | D12: □
B13: 10 | C13: CELのMONI ONは長時間(1h以上の場合は、山下さんと要相談)しないこと BUSにはCELのみのもあるので注意 dcsm-BUS_CEL_MONI_ON dcsm-BUS_CEL_MONI_OFF | D13: □
B14: 11 | C14: MEA1の SCAN ON は dcsm-EF_MEA1_ON_SW.cpsに入っているので 順番は MDP ONして dcsm-EF_MEA1_ON_SW.cps dcsm-EF_MEA1_HV_ON.cps dcsm-EF_MEA1_HV_OFF.cps dcsm-EF_MEA1_HV_ON.cps dcsm-EF_MEA1_HV_SCAN_OFF.cps dcsm-EF_MEA1_OFF.cps MDP OFF dcsm-EF_MEA_ON_SW.cps dcsm-EF_MEA_HV_ON.cps dcsm-EF_MEA_HV_OFF.cps dcsm-EF_MEA_HV_ON.cps dcsm-EF_MEA_HV_SCAN_OFF.cps dcsm-EF_MEA_OFF.cps になる SCAN OFFにすると データが出てこない HV OFF->ON時は注意する | D14: □
B15: 13 | C15: 2021/6/25以降 dcsm-EF_MSA_ON_C が最新 dcsm-EF_MSA_ONは使用しない | D15: □
B16: 14 | C16: 2021/6/25以降 dcsm-CRCO_MIA_CHECK_C が最新 dcsm-CRCO_MIA_CHECKは使用しない（クルーズチェックアウトの時） | D16: □
B17: 15 | C17: 2021/6/25以降 dcsm-CRCO_MSA_CHECK_C が最新 dcsm-CRCO_MSA_CHECKは使用しない（クルーズチェックアウトの時） | D17: □
B18: 16 | C18: フライバイ時、MIAのHV_ON時間帯によって違うので必ず確認する MIA_HV_ON_RC MIA_HV_ON_SW_RC MIA_HV_ON_MAG_RC | D18: □
B19: 17 | C19: Excelの時間を確認する 時間通りになっているか | D19: □

Sheet START
A1: Start | B1: End | C1: Start | D1: End | E1: Event | F1: Activity | G1: Procedure | H1: Duration (sec) | L1: cmd count | N1: cmd count
C2: =#REF! ->  | D2: =C2+H2/3600/24 ->  | F2: BUS_ON | G2: BUS_SETUP_D | H2: =VLOOKUP(G2,List!B:C,2,0) -> 577 | K2: =VLOOKUP(G2,List!B:E,4,0) -> dcsm-EF_BUS_MONI_ON | L2: =VLOOKUP(G2,List!B:G,6,0) -> 20 | M2: =C2-317/3600/24 ->  | N2: =+"0000 CALL "&K2&" -Run" -> 0000 CALL dcsm-EF_BUS_MONI_ON -Run | P2: CALL | Q2: dcsm-EF_BUS_MONI_ON | U2: =+IF(Q2=K2,"","x") -> 
C3: =D2 ->  | D3: =C3+H3/3600/24 ->  | F3: MDP ON | G3: MDP_ON_D | H3: =VLOOKUP(G3,List!B:C,2,0) -> 509 | K3: =VLOOKUP(G3,List!B:E,4,0) -> dcsm-EF_MDP_ON | L3: =VLOOKUP(G3,List!B:G,6,0) -> 11 | N3: 0000 CALL dcsm-EF_MDP_ON -Run | P3: CALL | Q3: dcsm-EF_MDP_ON | U3: =+IF(Q3=K3,"","x") -> 
C4: =D3 ->  | D4: =C4+H4/3600/24 ->  | G4: MDP_CRUISE_SET | H4: =VLOOKUP(G4,List!B:C,2,0) -> 42 | K4: =VLOOKUP(G4,List!B:E,4,0) -> dcsm-EF_MDP_CRUISE_SET | L4: =VLOOKUP(G4,List!B:G,6,0) -> 2 | N4: 0000 CALL dcsm-EF_MDP_CRUISE_SET -Run
F5: TLM mode change (MODE_10) | G5: TLM_MODE_10 | H5: =VLOOKUP(G5,List!B:C,2,0) -> 42 | K5: =VLOOKUP(G5,List!B:E,4,0) -> dcsm-EF_BUS_TLM_MODE_10 | L5: =VLOOKUP(G5,List!B:G,6,0) -> 2 | N5: 0000 CALL dcsm-EF_BUS_TLM_MODE_10 -Run
D6: =C6+H6/3600/24 ->  | F6: SI ON | G6: MEA1_ON_SETUP_SW | H6: =VLOOKUP(G6,List!B:C,2,0) -> 292 | K6: =VLOOKUP(G6,List!B:E,4,0) -> dcsm-EF_MEA1_ON_SW | L6: =VLOOKUP(G6,List!B:G,6,0) -> 12 | N6: 0000 CALL dcsm-EF_MEA1_ON_SW -Run
G7: HEP_ON_SETUP | H7: =VLOOKUP(G7,List!B:C,2,0) -> 1230 | K7: =VLOOKUP(G7,List!B:E,4,0) -> dcsm-EF_HEP_ON_START_for_TL | L7: =VLOOKUP(G7,List!B:G,6,0) -> 34 | N7: 0000 CALL dcsm-EF_HEP_ON_START_for_TL -Run | P7: CALL | Q7: dcsm-EF_MDP_CRUISE_SET | U7: x
G8: PME_ON | H8: =VLOOKUP(G8,List!B:C,2,0) -> 80 | K8: =VLOOKUP(G8,List!B:E,4,0) -> dcsm-EF_PME_ON | L8: =VLOOKUP(G8,List!B:G,6,0) -> 2 | N8: 0000 CALL dcsm-EF_PME_ON -Run | P8: CALL | Q8: dcsm-EF_BUS_TLM_MODE_10 | U8: x
G9: MGF_ON_SETUP | H9: =VLOOKUP(G9,List!B:C,2,0) -> 14 | K9: =VLOOKUP(G9,List!B:E,4,0) -> dcsm-EF_MGF_ON | L9: =VLOOKUP(G9,List!B:G,6,0) -> 3 | N9: 0000 CALL dcsm-EF_MGF_ON -Run
C10: =D9 ->  | D10: =C10+H10/3600/24 ->  | G10: ENA_ON_SETUP | H10: =VLOOKUP(G10,List!B:C,2,0) -> 564 | K10: =VLOOKUP(G10,List!B:E,4,0) -> dcsm-EF_ENA_power_ON | L10: =VLOOKUP(G10,List!B:G,6,0) -> 7 | M10: =C10-317/3600/24 ->  | N10: =+"0000 CALL "&K10&" -Run" -> 0000 CALL dcsm-EF_ENA_power_ON -Run

Sheet END
A1: Start | B1: End | C1: Start | D1: End | E1: Event | F1: Activity | G1: Procedure | H1: Duration (sec) | L1: cmd count | N1: cmd count
C2: =D2-H2/3600/24 ->  | D2: =C3 ->  | F2: SI OFF | G2: HEP_OFF | H2: =VLOOKUP(G2,List!B:C,2,0) -> 70 | K2: =VLOOKUP(G2,List!B:E,4,0) -> dcsm-EF_HEPE_OFF_STOP | L2: =VLOOKUP(G2,List!B:G,6,0) -> 4 | M2: =C2-317/3600/24 ->  | N2: =+"0000 CALL "&K2&" -Run" -> 0000 CALL dcsm-EF_HEPE_OFF_STOP -Run | P2: CALL | Q2: dcsm-EF_HEPE_OFF_STOP | U2: =+IF(Q2=K2,"","x") -> 
G3: MEA1_OFF | H3: =VLOOKUP(G3,List!B:C,2,0) -> 160 | K3: =VLOOKUP(G3,List!B:E,4,0) -> dcsm-EF_MEA1_OFF | L3: =VLOOKUP(G3,List!B:G,6,0) -> 4 | N3: =+"0000 CALL "&K3&" -Run" -> 0000 CALL dcsm-EF_MEA1_OFF -Run | P3: CALL | Q3: dcsm-EF_MEA1_OFF
G4: MGF_OFF | H4: =VLOOKUP(G4,List!B:C,2,0) -> 8 | K4: =VLOOKUP(G4,List!B:E,4,0) -> dcsm-EF_MGF_OFF | L4: =VLOOKUP(G4,List!B:G,6,0) -> 1 | N4: 0000 CALL dcsm-EF_MGF_OFF -Run | P4: CALL | Q4: dcsm-EF_MGF_OFF
G5: PME_OFF | H5: =VLOOKUP(G5,List!B:C,2,0) -> 40 | K5: =VLOOKUP(G5,List!B:E,4,0) -> dcsm-EF_PME_OFF | L5: =VLOOKUP(G5,List!B:G,6,0) -> 1 | N5: 0000 CALL dcsm-EF_PME_OFF -Run | P5: CALL | Q5: dcsm-EF_PME_OFF
G6: ENA_OFF | H6: =VLOOKUP(G6,List!B:C,2,0) -> 88 | K6: =VLOOKUP(G6,List!B:E,4,0) -> dcsm-EF_ENA_power_OFF | L6: =VLOOKUP(G6,List!B:G,6,0) -> 4 | M6: =C6-317/3600/24 ->  | N6: =+"0000 CALL "&K6&" -Run" -> 0000 CALL dcsm-EF_ENA_power_OFF -Run | P6: CALL | Q6: dcsm-EF_PME_OFF | U6: =+IF(Q6=K6,"","x") -> x
F7: MDP OFF | G7: MDP_OFF_D | H7: =VLOOKUP(G7,List!B:C,2,0) -> 120 | K7: =VLOOKUP(G7,List!B:E,4,0) -> dcsm-EF_MDP_POWEROFF | L7: =VLOOKUP(G7,List!B:G,6,0) -> 3 | N7: 0000 CALL dcsm-EF_MDP_POWEROFF -Run | U7: =+IF(#REF!=K7,"","x") -> 
C8: =#REF! ->  | D8: =C8+H8/3600/24 ->  | E8: =#REF! ->  | G8: END | H8: 1200 | K8: =VLOOKUP(G8,List!B:E,4,0) ->  | L8: 0

Sheet LOOP
A1: Start | B1: End | C1: Start | D1: End | E1: Event | F1: Activity | G1: Procedure | H1: Duration (sec) | L1: cmd count | N1: cmd count
C2: =#REF! ->  | D2: =C2+H2/3600/24 ->  | F2: SI HV ON | G2: HEP_HV_ON | H2: =VLOOKUP(G2,List!B:C,2,0) -> 270 | K2: =VLOOKUP(G2,List!B:E,4,0) -> dcsm-EF_HEPE_HV_ON_OBS_START | L2: =VLOOKUP(G2,List!B:G,6,0) -> 6 | M2: =C2-317/3600/24 ->  | N2: =+"0000 CALL "&K2&" -Run" -> 0000 CALL dcsm-EF_HEPE_HV_ON_OBS_START -Run | P2: CALL | Q2: dcsm-EF_MEA1_HV_ON | U2: =+IF(Q2=K2,"","x") -> x
C3: =D2 ->  | G3: ENA_HV_ON_CNT | H3: =VLOOKUP(G3,List!B:C,2,0) -> 344 | K3: =VLOOKUP(G3,List!B:E,4,0) -> dcsm-EF_ENA_HV_ON_CNT | L3: =VLOOKUP(G3,List!B:G,6,0) -> 18 | N3: =+"0000 CALL "&K3&" -Run" -> 0000 CALL dcsm-EF_ENA_HV_ON_CNT -Run | P3: CALL | Q3: dcsm-EF_HEPE_HV_ON_OBS_START | U3: x
C4: =D3 ->  | G4: MEA1_HV_ON | H4: =VLOOKUP(G4,List!B:C,2,0) -> 1702 | K4: =VLOOKUP(G4,List!B:E,4,0) -> dcsm-EF_MEA1_HV_ON | L4: =VLOOKUP(G4,List!B:G,6,0) -> 27 | M4: =C4-317/3600/24 ->  | N4: =+"0000 CALL "&K4&" -Run" -> 0000 CALL dcsm-EF_MEA1_HV_ON -Run | P4: CALL | Q4: dcsm-EF_HEPE_HV_ON_OBS_START | U4: =+IF(Q4=K4,"","x") -> x
F5: TLM mode change (MODE_5) | G5: TLM_MODE_5 | H5: =VLOOKUP(G5,List!B:C,2,0) -> 42 | K5: =VLOOKUP(G5,List!B:E,4,0) -> dcsm-EF_BUS_TLM_MODE_5 | L5: =VLOOKUP(G5,List!B:G,6,0) -> 2 | N5: 0000 CALL dcsm-EF_BUS_TLM_MODE_5 -Run | P5: CALL | Q5: dcsm-EF_BUS_TLM_MODE_5
D6: =C7 ->  | E6: Observation Q | H6: =(D6-C6)*3600*24 ->  | I6: =H6/3600 ->  | L6: 0 | N6: ="0000 WAIT_SEC "&TEXT(H6,"#0") ->  | P6: WAIT_SEC | Q6: 26900 | U6: x
C7: =D7-H7/3600/24 ->  | D7: =C8 ->  | F7: TLM mode change (MODE_10) | G7: TLM_MODE_10 | H7: =VLOOKUP(G7,List!B:C,2,0) -> 42 | K7: =VLOOKUP(G7,List!B:E,4,0) -> dcsm-EF_BUS_TLM_MODE_10 | L7: =VLOOKUP(G7,List!B:G,6,0) -> 2 | N7: =+"0000 CALL "&K7&" -Run" -> 0000 CALL dcsm-EF_BUS_TLM_MODE_10 -Run | P7: CALL | Q7: dcsm-EF_BUS_TLM_MODE_10
C8: =D8-H8/3600/24 ->  | D8: =C9 ->  | F8: SI HV OFF | G8: HEP_HV_OFF | H8: =VLOOKUP(G8,List!B:C,2,0) -> 190 | K8: =VLOOKUP(G8,List!B:E,4,0) -> dcsm-EF_HEPE_HV_OFF_OBS_OFF | L8: =VLOOKUP(G8,List!B:G,6,0) -> 5 | N8: 0000 CALL dcsm-EF_HEPE_HV_OFF_OBS_OFF -Run | P8: CALL | Q8: dcsm-EF_HEPE_HV_OFF_OBS_OFF
C9: =D9-H9/3600/24 ->  | D9: =C10 ->  | G9: ENA_HV_OFF | H9: =VLOOKUP(G9,List!B:C,2,0) -> 198 | K9: =VLOOKUP(G9,List!B:E,4,0) -> dcsm-EF_ENA_HV_OFF | L9: =VLOOKUP(G9,List!B:G,6,0) -> 4 | M9: =C9-317/3600/24 ->  | N9: =+"0000 CALL "&K9&" -Run" -> 0000 CALL dcsm-EF_ENA_HV_OFF -Run | P9: CALL | Q9: dcsm-EF_HEPE_HV_OFF_OBS_OFF | U9: =+IF(Q9=K9,"","x") -> x
C10: =D10-H10/3600/24 ->  | D10: =C11 ->  | G10: MEA1_HV_OFF | H10: =VLOOKUP(G10,List!B:C,2,0) -> 182 | K10: =VLOOKUP(G10,List!B:E,4,0) -> dcsm-EF_MEA1_HV_OFF | L10: =VLOOKUP(G10,List!B:G,6,0) -> 10 | N10: 0000 CALL dcsm-EF_MEA1_HV_OFF -Run | P10: CALL | Q10: dcsm-EF_MEA1_HV_OFF
C11: =#REF! ->  | D11: =C11+H11/3600/24 ->  | E11: WOL | G11: =(#REF!-D10)*24*3600 ->  | H11: 1200 | K11: =VLOOKUP(G11,#REF!,4,0) ->  | L11: 0 | N11: ="0000 WAIT_SEC "&TEXT(G11,"#0") ->  | P11: WAIT_SEC | Q11: 1800

Sheet COMMENT
A1: activity | B1: Comment
A2: main_start | B2: #!HEAD: main2-CROUSE_OBS6_XDOR_001_M63 2021-07-01 01:18:36 478 45 MMO MAIN2 // Earth Fly-by 0001 . # LET @ONERR=NEXT 0002 . # ========================================================================== 0003 # <startTime>2021-07-06T08:00:00Z</startTime> 0004 # <stopTime>2021-07-15T10:00:00Z</stopTime> 0005 # << XDOR:XDOR_BJXR_C%%%_CRCO_M&&&&&&_00001.BC >> 連続送信***** 0006 # << XOR:XOR__BJXR_C%%%_CRCO_M&&&&&&_00001.BC >> ***** 0007 # ========================================================================== 0008 # ========================================================================== 0009 . # EXEC_AT 2021-07-06 08:00:00 0010 # ◆◇◆◇◆◇◆◇◆◇◆◇◆◇◆◇◆◇◆◇◆◇◆◇◆◇◆◇◆◇◆◇◆◇◆◇◆ 0015 # ========================================================================== 0016 # 0. MMO MOSIF Heater & Switch to Standby Mode 0017 # ========================================================================== 0018 # 0019 # Change MOSIF Heater Setting (14sec) 0020 # <forMPO>AJXF017A</forMPO> 0021 WAIT_SEC 20 0022 # 0019 # Change MOSIF R Heater Setting 0020 # <forMPO>AJXF017C</forMPO> 0021 WAIT_SEC 42580 0022 # 0023 # MMO Switch to Standby Mode (main) (300sec) 0024 # <forMPO>AJXF001A</forMPO> 0025 WAIT_SEC 360 0026 # 0027 # MMO Set HK rate to 64 second (3sec) 0028 # <forMPO>AJXF005A</forMPO> 0029 WAIT_SEC 240 0030 #
A3: main_end | B3: 0122 # ========================================================================== 0291 #############################################################################
A4: OBS | B4: 0068 # ========================================================================== 0069 # @@. Observation \\ 0070 # ========================================================================== 0071 #
A5: WOL | B5: 0217 # ========================================================================== 0218 # @@. WOL # $$ 0219 # ========================================================================== 0220 #
A6: BUS_ON | B6: 0016 # ========================================================================== 0017 # @@. BUS ON 0018 # ========================================================================== 0019 #
A7: MDP ON | B7: 0020 # ========================================================================== 0021 # @@. MDP ON 0022 # ========================================================================== 0023 #
A8: SI Check
A9: MDP OFF | B9: 0274 # ========================================================================== 0275 # @@. MDP OFF 0276 # ========================================================================== 0277 #
A10: BUS OFF | B10: 0285 # ========================================================================== 0286 # @@. BUS MONI OFF 0287 # ========================================================================== 0288 #
A11: SI ON | B11: 0034 # ========================================================================== 0035 # @@. PI POWER ON 0036 # ========================================================================== 0037 #
A12: SI HV ON | B12: 0049 # ========================================================================== 0050 # @@. PI HV ON 0051 # ========================================================================== 0052 #
A13: TLM mode change (MODE_5) | B13: 0059 # ========================================================================== 0060 # @@. TLM MODE 5 (Mission: 7kbps, without user HK) 0061 # ========================================================================== 0062 #
A14: TLM mode change (MODE_10) | B14: 0028 # ========================================================================== 0029 # @@. TLM MODE 10 (Mission: 4kbps, with user HK) 0030 # ========================================================================== 0031 #
A15: SI HV OFF | B15: 0207 # ========================================================================== 0208 # @@. PI HV OFF 0209 # ========================================================================== 0210 #
A16: SI OFF | B16: 0259 # ========================================================================== 0260 # @@. PI Power OFF 0261 # ========================================================================== 0262 #
A17: MSA SOFT RESET
A18: MACRO COMMAND ENA | B18: 0280 # ========================================================================== 0281 # @@. MACRO ENA 0282 # ========================================================================== 0283 #
A19: CrouseCheckOut
A21: main_start(XDOR) 改修により使用不可 | B21: #!HEAD: main2-CROUSE_OBS6_XDOR_001_M63 2021-07-01 01:18:36 478 45 MMO MAIN2 // Earth Fly-by 0001 . # LET @ONERR=NEXT 0002 . # ========================================================================== 0003 # <startTime>2021-07-06T08:00:00Z</startTime> 0004 # <stopTime>2021-07-15T10:00:00Z</stopTime> 0005 # << XDOR:XDOR_BJXR_C%%%_CRCO_M&&&&&&_00001.BC >> 連続送信***** 0006 # << XOR:XOR__BJXR_C%%%_CRCO_M&&&&&&_00001.BC >> ***** 0007 # ========================================================================== 0008 # ========================================================================== 0009 . # EXEC_AT 2021-07-06 08:00:00 0010 # ◆◇◆◇◆◇◆◇◆◇◆◇◆◇◆◇◆◇◆◇◆◇◆◇◆◇◆◇◆◇◆◇◆◇◆◇◆ 0015 # ========================================================================== 0016 # 0. MMO MOSIF Heater & Switch to Standby Mode 0017 # ========================================================================== 0018 # 0019 # Change MOSIF Heater Setting (14sec) 0020 # <forMPO>AJXF017A</forMPO> 0021 WAIT_SEC 42586 0022 # 0023 # MMO Switch to Standby Mode (main) (300sec) 0024 # <forMPO>AJXF001A</forMPO> 0025 WAIT_SEC 60 0026 # 0027 # MMO Set HK rate to 64 second (3sec) 0028 # <forMPO>AJXF005A</forMPO> 0029 WAIT_SEC 237 0030 # | C21: 仕様変更により使用しない
A22: main_start(XOR) | B22: #!HEAD: main2-CROUSE_OBS6_XDOR_001_M63 2021-07-01 01:18:36 478 45 MMO MAIN2 // Earth Fly-by 0001 . # LET @ONERR=NEXT 0002 . # ========================================================================== 0003 # <startTime>2021-07-06T08:00:00Z</startTime> 0004 # <stopTime>2021-07-15T10:00:00Z</stopTime> 0005 # << XDOR:XDOR_BJXR_C%%%_CRCO_M&&&&&&_00001.BC >> 連続送信***** 0006 # << XOR:XOR__BJXR_C%%%_CRCO_M&&&&&&_00001.BC >> ***** 0007 # ========================================================================== 0008 # ========================================================================== 0009 . # EXEC_AT 2021-07-06 08:00:00 0010 # ◆◇◆◇◆◇◆◇◆◇◆◇◆◇◆◇◆◇◆◇◆◇◆◇◆◇◆◇◆◇◆◇◆◇◆◇◆ 0015 # ========================================================================== 0016 # 0. MMO MOSIF Heater & Switch to Standby Mode 0017 # ========================================================================== 0018 # 0019 # Change MOSIF Heater Setting (14sec) 0020 # <forMPO>AJXF017A</forMPO> 0021 WAIT_SEC 42600 0022 # 0023 # MMO Switch to Standby Mode (main) (300sec) 0024 # <forMPO>AJXF001A</forMPO> 0025 WAIT_SEC 360 0026 # 0027 # MMO Set HK rate to 64 second (3sec) 0028 # <forMPO>AJXF005A</forMPO> 0029 WAIT_SEC 240 0030 #
A23: main_end(XDOR)改修により使用不可 | B23: 0122 # ========================================================================== 0123 # 99. MMO Dormant Mode 0124 # ========================================================================== 0125 WAIT_SEC 240 0126 # 0127 # MMO Set HK rate to 1 second (3sec) 0128 # <forMPO>AJXF004A</forMPO> 0129 WAIT_SEC 117 0130 # 0131 # MMO Switch to Dormant Mode (70sec) 0132 # <forMPO>AJXF002A</forMPO> 0133 WAIT_SEC 230 0134 # 0135 # Return MOSIF heater setting (14sec) 0136 # <forMPO>AJXF017B</forMPO> 0291 #############################################################################
A24: main_end(XOR) | B24: 0122 # ========================================================================== 0123 # 99. MMO Dormant Mode 0124 # ========================================================================== 0125 WAIT_SEC 240 0126 # 0127 # MMO Set HK rate to 1 second (3sec) 0128 # <forMPO>AJXF004A</forMPO> 0129 WAIT_SEC 120 0130 # 0131 # MMO Switch to Dormant Mode (70sec) 0132 # <forMPO>AJXF002A</forMPO> 0133 WAIT_SEC 300 0134 # 0135 # Return MOSIF heater setting (14sec) 0136 # <forMPO>AJXF017B</forMPO> 0291 #############################################################################

Sheet List
C1: Duration (sec) | D1: source filename | E1: filename | G1: cmdcount
A2: BUS | B2: BUS_CEL_MONI_OFF | C2: 40 | E2: dcsm-BUS_CEL_MONI_OFF | G2: 1
B3: BUS_CEL_MONI_ON | C3: 40 | E3: dcsm-BUS_CEL_MONI_ON | G3: 1
B4: BUS_CHG_BEFORE_CHK | C4: 0 | E4: dcsm-BUS_CHG_BEFORE_CHK | G4: 0
B5: BUS_CHG_EMERGENCY_OFF | C5: 86 | E5: dcsm-BUS_CHG_Emergency_OFF | G5: 5
B6: BUS_CHG_SET | C6: 298 | E6: dcsm-BUS_CHG_SET | G6: 14
B7: BUS_CHG_START | C7: 82 | E7: dcsm-BUS_CHG_START | G7: 2
B8: BUS_CHG_STOP_BAT-EXT | C8: 160 | E8: dcsm-BUS_CHG_STOP_BAT-EXT | G8: 4
B9: BUS_MMO_OFF | C9: 140 | E9: dcsm-BUS_MMO_OFF | G9: 1
B10: BUS_MMO_ON | C10: 80 | E10: dcsm-BUS_MMO_ON | G10: 2
A11: CRCO | B11: CRCO_BUS_MONI_ON | C11: 310 | E11: dcsm-CRCO_BUS_MONI_ON | G11: 10
B12: CRCO_CEL_MONI_OFF | C12: 40 | E12: dcsm-CRCO_CEL_MONI_OFF | G12: 1
B13: CRCO_ENA | C13: 1134 | E13: dcsm-CRCO_ENA_CHECK | G13: 18
B14: CRCO_HEPE | C14: 2206 | E14: dcsm-CRCO_HEPE_CHECK | G14: 36
B15: CRCO_HEPI | C15: 2730 | E15: dcsm-CRCO_HEPI_CHECK | G15: 48
B16: CRCO_MASTWPT | C16: 1848 | E16: dcsm-CRCO_MASTWPT_CHECK | G16: 41
B17: CRCO_MDM | C17: 2332 | E17: dcsm-CRCO_MDM_CHECK | G17: 45
B18: CRCO_MDP_OFF | C18: 120 | E18: dcsm-CRCO_MDP_OFF | G18: 4
B19: CRCO_MDP_ON | C19: 509 | E19: dcsm-CRCO_MDP_ON | G19: 12
B20: CRCO_MEA | C20: 4620 | E20: dcsm-CRCO_MEA_CHECK | G20: 52
B21: CRCO_MGF | C21: 3969 | E21: dcsm-CRCO_MGF_CHECK | G21: 49
B22: CRCO_MIA_C | C22: 1892 | E22: dcsm-CRCO_MIA_CHECK_C | G22: 20
B23: CRCO_MSASI | C23: 6688 | E23: dcsm-CRCO_MSASI_CHECK | G23: 23
B24: CRCO_MSA_C | C24: 1102 | E24: dcsm-CRCO_MSA_CHECK_C | G24: 19
B25: CRCO_PME_OFF | C25: 120 | E25: dcsm-CRCO_PME_OFF | G25: 5
B26: CRCO_PME_ON | C26: 160 | E26: dcsm-CRCO_PME_ON | G26: 5
B27: CRCO_PWI | C27: 2448 | E27: dcsm-CRCO_PWI_CHECK | G27: 51
B28: CRCO_SI_READY | C28: 377 | E28: dcsm-CRCO_SI_READY | G28: 17
A29: BUS | B29: BUS_OFF_D | C29: 220 | E29: dcsm-EF_BUS_MONI_OFF | G29: 5
B30: BUS_SETUP_D | C30: 577 | E30: dcsm-EF_BUS_MONI_ON | G30: 20
B31: TLM_MODE_10 | C31: 42 | E31: dcsm-EF_BUS_TLM_MODE_10 | G31: 2
B32: TLM_MODE_5 | C32: 42 | E32: dcsm-EF_BUS_TLM_MODE_5 | G32: 2
B33: TLM_MODE_7 | C33: 2 | E33: dcsm-EF_BUS_TLM_MODE_7 | G33: 1
A34: ENA | B34: ENA_HV_OFF | C34: 198 | E34: dcsm-EF_ENA_HV_OFF | G34: 4
B35: ENA_HV_ON | C35: 344 | E35: dcsm-EF_ENA_HV_ON | G35: 18
B36: ENA_HV_ON_CNT | C36: 344 | E36: dcsm-EF_ENA_HV_ON_CNT | G36: 18
B37: ENA_HV_ON_H | C37: 344 | E37: dcsm-EF_ENA_HV_ON_H | G37: 18
B38: ENA_OFF | C38: 88 | E38: dcsm-EF_ENA_power_OFF | G38: 4
B39: ENA_ON_SETUP | C39: 564 | E39: dcsm-EF_ENA_power_ON | G39: 7
A40: HEP | B40: HEP_HV_OFF | C40: 190 | E40: dcsm-EF_HEPE_HV_OFF_OBS_OFF | G40: 5
B41: HEP_HV_ON | C41: 270 | E41: dcsm-EF_HEPE_HV_ON_OBS_START | G41: 6
B42: HEP_OFF | C42: 70 | E42: dcsm-EF_HEPE_OFF_STOP | G42: 4
B43: HEP_ON_SETUP | C43: 1230 | E43: dcsm-EF_HEP_ON_START_for_TL | G43: 34
A44: MDM | B44: MDM_OFF | C44: 160 | E44: dcsm-EF_MDM_OFF | G44: 4
B45: MDM_ON_SETUP | C45: 202 | E45: dcsm-EF_MDM_ON | G45: 6
A46: MDP | B46: MDP_CRUISE_SET | C46: 42 | E46: dcsm-EF_MDP_CRUISE_SET | G46: 2
B47: MDP_ERR_DUMP | C47: 9080 | E47: dcsm-EF_MDP_ERR_DUMP | G47: 6
B48: MDP_ON_D | C48: 509 | E48: dcsm-EF_MDP_ON | G48: 11
B49: MDP_OFF_D | C49: 120 | E49: dcsm-EF_MDP_POWEROFF | G49: 3
A50: MEA | B50: MEA1_HV_OFF | C50: 182 | E50: dcsm-EF_MEA1_HV_OFF | G50: 10
B51: MEA1_HV_ON | C51: 1702 | E51: dcsm-EF_MEA1_HV_ON | G51: 27
B52: MEA1_HV_SCAN_OFF | C52: 186 | E52: dcsm-EF_MEA1_HV_SCAN_OFF | G52: 12
B53: MEA1_OFF | C53: 160 | E53: dcsm-EF_MEA1_OFF | G53: 4
B54: MEA1_ON_SETUP_SW | C54: 292 | E54: dcsm-EF_MEA1_ON_SW | G54: 12
B55: MEA_HV_OFF | C55: 202 | E55: dcsm-EF_MEA_HV_OFF | G55: 20
B56: MEA_HV_ON | C56: 1756 | E56: dcsm-EF_MEA_HV_ON | G56: 54
B57: MEA_HV_ON_MOD | C57: 126 | E57: dcsm-EF_MEA_HV_ON_modified | G57: 6
B58: MEA_HV_SCAN_OFF | C58: 210 | E58: dcsm-EF_MEA_HV_SCAN_OFF | G58: 24
B59: MEA_OFF | C59: 164 | E59: dcsm-EF_MEA_OFF | G59: 6
B60: MEA_ON_SETUP_MAG | C60: 386 | E60: dcsm-EF_MEA_ON_MAG | G60: 21
B61: MEA_ON_SETUP_SW | C61: 386 | E61: dcsm-EF_MEA_ON_SW | G61: 21
A62: MGF | B62: MGF_OFF | C62: 8 | E62: dcsm-EF_MGF_OFF | G62: 1
B63: MGF_ON_SETUP | C63: 14 | E63: dcsm-EF_MGF_ON | G63: 3
A64: MIA | B64: MIA_HV_OFF | C64: 60 | E64: dcsm-EF_MIA_HV_OFF | G64: 1
B65: MIA_HV_ON | C65: 240 | E65: dcsm-EF_MIA_HV_ON | G65: 6
B66: MIA_HV_ON_MAG | C66: 142 | E66: dcsm-EF_MIA_HV_ON_MAG | G66: 4
B67: MIA_HV_ON_MAG_RC | C67: 262 | E67: dcsm-EF_MIA_HV_ON_MAG_RC | G67: 7
B68: MIA_HV_ON_RC | C68: 280 | E68: dcsm-EF_MIA_HV_ON_RC | G68: 7
B69: MIA_HV_ON_SW | C69: 102 | E69: dcsm-EF_MIA_HV_ON_SW | G69: 3
B70: MIA_HV_ON_SW_RC | C70: 262 | E70: dcsm-EF_MIA_HV_ON_SW_RC | G70: 7
B71: MIA_OFF | C71: 160 | E71: dcsm-EF_MIA_OFF | G71: 4
B72: MIA_ON_SETUP | C72: 382 | E72: dcsm-EF_MIA_ON | G72: 6
B73: MIA_ON_ASIC_LDET | C73: 582 | E73: dcsm-EF_MIA_ON_ASIC_LDET | G73: 11
B74: MIA_ON_C | C74: 0 | E74: dcsm-EF_MIA_ON_C | G74: 0
A75: MSA | B75: MSA_HV_OFF | C75: 714 | E75: dcsm-EF_MSA_HV_OFF | G75: 24
B76: MSA_HV_OFF_VFB | C76: 774 | E76: dcsm-EF_MSA_HV_OFF_VFB | G76: 25
B77: MSA_HV_ON_1 | C77: 4692 | E77: dcsm-EF_MSA_HV_ON_1 | G77: 108
B78: MSA_HV_ON_1_MFB_SF | C78: 1573 | E78: dcsm-EF_MSA_HV_ON_1_MFB_Safe | G78: 108
B79: MSA_HV_ON_VFB1 | C79: 2882 | E79: dcsm-EF_MSA_HV_ON_1_VFB | G79: 108
B80: MSA_HV_ON_2 | C80: 6262 | E80: dcsm-EF_MSA_HV_ON_2 | G80: 124
B81: MSA_HV_ON_2_MFB_SF | C81: 1860 | E81: dcsm-EF_MSA_HV_ON_2_MFB_Safe | G81: 124
B82: MSA_HV_ON_VFB2 | C82: 3262 | E82: dcsm-EF_MSA_HV_ON_2_VFB | G82: 124
B83: MSA_OFF | C83: 380 | E83: dcsm-EF_MSA_OFF | G83: 25
B84: MSA_ON_SETUP | C84: 1092 | E84: dcsm-EF_MSA_ON | G84: 15
B85: MSA_ON_SETUP_C | C85: 1092 | E85: dcsm-EF_MSA_ON_C | G85: 15
B86: MSA_SOFT_RESET | C86: 120 | E86: dcsm-EF_MSA_SOFT_RESET | G86: 3
B87: MSA_SOFT_RESET2 | C87: 100 | E87: dcsm-EF_MSA_SOFT_RESET2 | G87: 5
A88: PME | B88: PME_OFF | C88: 40 | E88: dcsm-EF_PME_OFF | G88: 1
B89: PME_ON | C89: 80 | E89: dcsm-EF_PME_ON | G89: 2
A90: PWI | B90: PWI_OFF | C90: 80 | E90: dcsm-EF_PWI_OFF | G90: 2
B91: PWI_ON | C91: 828 | E91: dcsm-EF_PWI_ON | G91: 26
B92: PWI_ON_SETUP | C92: 868 | E92: dcsm-EF_PWI_ON_CRUISE | G92: 27
A93: MACRO | B93: MC_ENA | C93: 246 | E93: dcsm-MC_ENA_MDP | G93: 21
A94: MDP | B94: MDP_AP9_DUMP | C94: 1880 | E94: dcsm-MDP_AP09_LOG_DUMP | G94: 4
B95: MDP_ERR_LOG_DUMP | C95: 9080 | E95: dcsm-MDP_ERR_LOG_DUMP | G95: 6
B96: MDP_HK_REPEINT_6 | C96: 42 | E96: dcsm-MDP_HK_REPINT_6 | G96: 2
A97: MEA | B97: MEA2_MEM_DMP | C97: 2550 | E97: dcsm-MEA2_MEM_DMP | G97: 36
A98: MSASI | B98: MSASI_DARK_1 | C98: 768 | E98: dcsm-MSASI_dark_CO_sequence1 | G98: 11
B99: MSASI_DARK_2 | C99: 19498 | E99: dcsm-MSASI_dark_CO_sequence2 | G99: 55
A100: MSA | B100: MSA_TABLE_UPLOAD | C100: 0 | E100: dcsm-MSA_TABLE_UPLOAD | G100: 0
A101: TCFS | B101: TCSF_MSASI | C101: 345 | E101: dcsm-tcfs_tbl1_msasi_set | G101: 13
A102: WAIT | B102: WAIT3600 | C102: 3600
B103: WAIT3500 | C103: 3500
B104: WAIT19357 | C104: 19357
B105: WAIT1800 | C105: 1800 | E105: WAIT_SEC 1800
B106: WAIT10800 | C106: 10800 | E106: WAIT_SEC 10800
B107: WAIT600 | C107: 600 | E107: WAIT_SEC 600

Sheet WOL
C1: START TIME | D1: 2022-04-11
C2: END TIME | D2: 2022-05-06T05:20:00
B3: ID | D3: date time excel | E3: duration(s)
B4: WOLS | C4: WOL#1 | D4: 2022-04-12T01:07:11 | E4: 1200
B5: WOLS | C5: WOL#2 | D5: 2022-04-13T04:30:55 | E5: 1200
B6: WOLS | C6: WOL#3 | D6: 2022-04-14T06:07:23 | E6: 1200
B7: WOLS | C7: WOL#4 | D7: 2022-04-15T00:58:02 | E7: 1200
B8: WOLS | C8: WOL#5 | D8: 2022-04-15T20:05:46 | E8: 1200
B9: WOLS | C9: WOL#6 | D9: 2022-04-16T17:48:31 | E9: 1200
B10: WOLS | C10: WOL#7 | D10: 2022-04-17T17:14:35 | E10: 1200
B11: WOLS | C11: WOL#8 | D11: 2022-04-18T17:37:53 | E11: 1200
B12: WOLS | C12: WOL#9 | D12: 2022-04-19T18:11:27 | E12: 1200
B13: WOLS | C13: WOL#10 | D13: 2022-04-20T20:50:43 | E13: 1200
B14: WOLS | C14: WOL#11 | D14: 2022-04-21T21:53:19 | E14: 1200
B15: WOLS | C15: WOL#12 | D15: 2022-04-22T19:43:44 | E15: 1200
B16: WOLS | C16: WOL#13 | D16: 2022-04-23T18:07:11 | E16: 1200
B17: WOLS | C17: WOL#14 | D17: 2022-04-24T17:25:43 | E17: 1200
B18: WOLS | C18: WOL#15 | D18: 2022-04-25T18:20:37 | E18: 1200
B19: WOLS | C19: WOL#16 | D19: 2022-04-26T20:37:23 | E19: 1200

Sheet obs_sequence
A1: START | C1: =WOL!D1 -> 2022-04-11 | D1: OBCP START | E1: =C1-12*60*60/3600/24 -> 2022-04-10T12:00:00 | L1: 5days
A2: END | C2: =WOL!D2 -> 2022-05-06T05:20:00 | D2: OBCP END | E2: =C2+(240+120+300)/3600/24 -> 2022-05-06T05:31:00 | F2: CMD END | G2: =C2-100/3600/24 -> 2022-05-06T05:18:20
A4: Relative time (h) | C4: Absolute time (UTC) | L4: =+SUM(L6:L85) -> 617
A5: Start | B5: End | C5: Start | D5: End | E5: Event | F5: Activity | G5: Procedure | H5: Duration (sec) | L5: cmd count | M5: XOR Time | N5: cmd count
C6: 2022-04-11 | D6: =C6+H6/3600/24 -> 2022-04-11T00:09:37 | F6: BUS_ON | G6: BUS_SETUP_D | H6: =VLOOKUP(G6,List!B:C,2,0) -> 577 | K6: =VLOOKUP(G6,List!B:E,4,0) -> dcsm-EF_BUS_MONI_ON | L6: =VLOOKUP(G6,List!B:G,6,0) -> 20 | M6: =C6-317/3600/24 -> 2022-04-10T23:54:43 | N6: =+"0000 CALL "&K6&" -Run" -> 0000 CALL dcsm-EF_BUS_MONI_ON -Run | Q6: =+D6-C6 -> 0.006678240738 | R6: =+C7-C6 -> 0.006678240738 | S6: =+D7-D6 -> 0.005891203706
C7: =D6 -> 2022-04-11T00:09:37 | D7: =C7+H7/3600/24 -> 2022-04-11T00:18:06 | F7: MDP ON | G7: MDP_ON_D | H7: =VLOOKUP(G7,List!B:C,2,0) -> 509 | K7: =VLOOKUP(G7,List!B:E,4,0) -> dcsm-EF_MDP_ON | L7: =VLOOKUP(G7,List!B:G,6,0) -> 11 | M7: 2022-04-11T00:04:20 | N7: 0000 CALL dcsm-EF_MDP_ON -Run | Q7: =+D7-C7 -> 0.005891203706 | R7: =+C8-C7 -> 0.005891203706 | S7: 0.0004861111083
C8: =D7 -> 2022-04-11T00:18:06 | D8: =C8+H8/3600/24 -> 2022-04-11T00:18:48 | G8: MDP_CRUISE_SET | H8: =VLOOKUP(G8,List!B:C,2,0) -> 42 | K8: =VLOOKUP(G8,List!B:E,4,0) -> dcsm-EF_MDP_CRUISE_SET | L8: =VLOOKUP(G8,List!B:G,6,0) -> 2 | M8: 2022-04-11T00:12:49 | N8: 0000 CALL dcsm-EF_MDP_CRUISE_SET -Run | Q8: 0.0004861111083 | R8: 0.0004861111083 | S8: 0.0004861111083
C9: 2022-04-11T00:18:48 | D9: 2022-04-11T00:19:30 | F9: TLM mode change (MODE_10) | G9: TLM_MODE_10 | H9: =VLOOKUP(G9,List!B:C,2,0) -> 42 | K9: =VLOOKUP(G9,List!B:E,4,0) -> dcsm-EF_BUS_TLM_MODE_10 | L9: =VLOOKUP(G9,List!B:G,6,0) -> 2 | M9: 2022-04-11T00:13:31 | N9: 0000 CALL dcsm-EF_BUS_TLM_MODE_10 -Run | Q9: 0.0004861111083 | R9: 0.0004861111083 | S9: 0.003379629627
C10: 2022-04-11T00:19:30 | D10: 2022-04-11T00:24:22 | F10: SI ON | G10: MEA1_ON_SETUP_SW | H10: =VLOOKUP(G10,List!B:C,2,0) -> 292 | K10: =VLOOKUP(G10,List!B:E,4,0) -> dcsm-EF_MEA1_ON_SW | L10: =VLOOKUP(G10,List!B:G,6,0) -> 12 | M10: 2022-04-11T00:14:13 | N10: 0000 CALL dcsm-EF_MEA1_ON_SW -Run | Q10: 0.003379629627 | R10: 0.003379629627 | S10: 0.01423611111
C11: 2022-04-11T00:24:22 | D11: 2022-04-11T00:44:52 | G11: HEP_ON_SETUP | H11: =VLOOKUP(G11,List!B:C,2,0) -> 1230 | K11: =VLOOKUP(G11,List!B:E,4,0) -> dcsm-EF_HEP_ON_START_for_TL | L11: =VLOOKUP(G11,List!B:G,6,0) -> 34 | M11: 2022-04-11T00:19:05 | N11: 0000 CALL dcsm-EF_HEP_ON_START_for_TL -Run | Q11: 0.01423611111 | R11: 0.01423611111 | S11: 0.0009259259241
C12: 2022-04-11T00:44:52 | D12: 2022-04-11T00:46:12 | G12: PME_ON | H12: =VLOOKUP(G12,List!B:C,2,0) -> 80 | K12: =VLOOKUP(G12,List!B:E,4,0) -> dcsm-EF_PME_ON | L12: =VLOOKUP(G12,List!B:G,6,0) -> 2 | M12: 2022-04-11T00:39:35 | N12: 0000 CALL dcsm-EF_PME_ON -Run | Q12: 0.0009259259241 | R12: 0.0009259259241 | S12: 0.0001620370385
C13: 2022-04-11T00:46:12 | D13: 2022-04-11T00:46:26 | G13: MGF_ON_SETUP | H13: =VLOOKUP(G13,List!B:C,2,0) -> 14 | K13: =VLOOKUP(G13,List!B:E,4,0) -> dcsm-EF_MGF_ON | L13: =VLOOKUP(G13,List!B:G,6,0) -> 3 | M13: 2022-04-11T00:40:55 | N13: 0000 CALL dcsm-EF_MGF_ON -Run | Q13: 0.0001620370385 | R13: 0.0001620370385 | S13: 0.006527777776
C14: 2022-04-11T00:46:26 | D14: 2022-04-11T00:55:50 | G14: ENA_ON_SETUP | H14: =VLOOKUP(G14,List!B:C,2,0) -> 564 | K14: =VLOOKUP(G14,List!B:E,4,0) -> dcsm-EF_ENA_power_ON | L14: =VLOOKUP(G14,List!B:G,6,0) -> 7 | M14: 2022-04-11T00:41:09 | N14: 0000 CALL dcsm-EF_ENA_power_ON -Run | Q14: 0.006527777776 | R14: 0.006527777776 | S14: 0.003125000003
C15: =D14 -> 2022-04-11T00:55:50 | D15: 2022-04-11T01:00:20 | F15: SI HV ON | G15: HEP_HV_ON | H15: =VLOOKUP(G15,List!B:C,2,0) -> 270 | K15: =VLOOKUP(G15,List!B:E,4,0) -> dcsm-EF_HEPE_HV_ON_OBS_START | L15: =VLOOKUP(G15,List!B:G,6,0) -> 6 | M15: 2022-04-11T00:50:33 | N15: =+"0000 CALL "&K15&" -Run" -> 0000 CALL dcsm-EF_HEPE_HV_ON_OBS_START -Run | Q15: 0.003125000003 | R15: 0.003125000003 | S15: 0.003981481481
C16: =D15 -> 2022-04-11T01:00:20 | D16: 2022-04-11T01:06:04 | G16: ENA_HV_ON_CNT | H16: =VLOOKUP(G16,List!B:C,2,0) -> 344 | K16: =VLOOKUP(G16,List!B:E,4,0) -> dcsm-EF_ENA_HV_ON_CNT | L16: =VLOOKUP(G16,List!B:G,6,0) -> 18 | M16: 2022-04-11T00:55:03 | N16: =+"0000 CALL "&K16&" -Run" -> 0000 CALL dcsm-EF_ENA_HV_ON_CNT -Run | Q16: 0.003981481481 | R16: 0.003981481481 | S16: 0.01969907407
C17: 2022-04-11T01:06:04 | D17: 2022-04-11T01:34:26 | G17: MEA1_HV_ON | H17: =VLOOKUP(G17,List!B:C,2,0) -> 1702 | K17: =VLOOKUP(G17,List!B:E,4,0) -> dcsm-EF_MEA1_HV_ON | L17: =VLOOKUP(G17,List!B:G,6,0) -> 27 | M17: 2022-04-11T01:00:47 | N17: 0000 CALL dcsm-EF_MEA1_HV_ON -Run | Q17: 0.01969907407 | R17: 0.01969907407 | S17: 0.0004861111083
C18: 2022-04-11T01:34:26 | D18: 2022-04-11T01:35:08 | F18: TLM mode change (MODE_5) | G18: TLM_MODE_5 | H18: =VLOOKUP(G18,List!B:C,2,0) -> 42 | K18: =VLOOKUP(G18,List!B:E,4,0) -> dcsm-EF_BUS_TLM_MODE_5 | L18: =VLOOKUP(G18,List!B:G,6,0) -> 2 | M18: 2022-04-11T01:29:09 | N18: 0000 CALL dcsm-EF_BUS_TLM_MODE_5 -Run | Q18: 0.0004861111083 | R18: 0.0004861111083 | S18: 0.9735069445
C19: 2022-04-11T01:35:08 | D19: =C20 -> 2022-04-12T00:56:59 | E19: Observation A | H19: =(D19-C19)*3600*24 -> 84111 | I19: =H19/3600 -> 23.36416667 | L19: 0 | M19: 2022-04-11T01:29:51 | N19: ="0000 WAIT_SEC "&TEXT(H19,"#0") -> 0000 WAIT_SEC 84111 | Q19: 0.9735069445 | R19: 0.9735069445 | S19: 0.0004861111083
C20: =D20-H20/3600/24 -> 2022-04-12T00:56:59 | D20: =C21 -> 2022-04-12T00:57:41 | F20: TLM mode change (MODE_10) | G20: TLM_MODE_10 | H20: =VLOOKUP(G20,List!B:C,2,0) -> 42 | K20: =VLOOKUP(G20,List!B:E,4,0) -> dcsm-EF_BUS_TLM_MODE_10 | L20: =VLOOKUP(G20,List!B:G,6,0) -> 2 | M20: 2022-04-12T00:51:42 | N20: =+"0000 CALL "&K20&" -Run" -> 0000 CALL dcsm-EF_BUS_TLM_MODE_10 -Run | Q20: 0.0004861111083 | R20: 0.0004861111083 | S20: 0.002199074072
C21: =D21-H21/3600/24 -> 2022-04-12T00:57:41 | D21: =C22 -> 2022-04-12T01:00:51 | F21: SI HV OFF | G21: HEP_HV_OFF | H21: =VLOOKUP(G21,List!B:C,2,0) -> 190 | K21: =VLOOKUP(G21,List!B:E,4,0) -> dcsm-EF_HEPE_HV_OFF_OBS_OFF | L21: =VLOOKUP(G21,List!B:G,6,0) -> 5 | M21: 2022-04-12T00:52:24 | N21: 0000 CALL dcsm-EF_HEPE_HV_OFF_OBS_OFF -Run | Q21: 0.002199074072 | R21: 0.002199074072 | S21: 0.002291666664
C22: =D22-H22/3600/24 -> 2022-04-12T01:00:51 | D22: =C23 -> 2022-04-12T01:04:09 | G22: ENA_HV_OFF | H22: =VLOOKUP(G22,List!B:C,2,0) -> 198 | K22: =VLOOKUP(G22,List!B:E,4,0) -> dcsm-EF_ENA_HV_OFF | L22: =VLOOKUP(G22,List!B:G,6,0) -> 4 | M22: 2022-04-12T00:55:34 | N22: 0000 CALL dcsm-EF_ENA_HV_OFF -Run | Q22: 0.002291666664 | R22: 0.002291666664 | S22: 0.002106481479
C23: =D23-H23/3600/24 -> 2022-04-12T01:04:09 | D23: =C24 -> 2022-04-12T01:07:11 | G23: MEA1_HV_OFF | H23: =VLOOKUP(G23,List!B:C,2,0) -> 182 | K23: =VLOOKUP(G23,List!B:E,4,0) -> dcsm-EF_MEA1_HV_OFF | L23: =VLOOKUP(G23,List!B:G,6,0) -> 10 | M23: 2022-04-12T00:58:52 | N23: 0000 CALL dcsm-EF_MEA1_HV_OFF -Run | Q23: 0.002106481479 | R23: 0.002106481479 | S23: 0.01388888889
C24: 2022-04-12T01:07:11 | D24: =C24+H24/3600/24 -> 2022-04-12T01:27:11 | E24: WOL#1 | G24: =(C25-D23)*24*3600 -> 1800 | H24: 1200 | L24: 0 | M24: 2022-04-12T01:01:54 | N24: ="0000 WAIT_SEC "&TEXT(G24,"#0") -> 0000 WAIT_SEC 1800 | Q24: 0.01388888889 | R24: 0.02083333334 | S24: 0.01006944445
C25: =D24+10/60/24 -> 2022-04-12T01:37:11 | D25: =C25+H25/3600/24 -> 2022-04-12T01:41:41 | F25: SI HV ON | G25: HEP_HV_ON | H25: =VLOOKUP(G25,List!B:C,2,0) -> 270 | K25: =VLOOKUP(G25,List!B:E,4,0) -> dcsm-EF_HEPE_HV_ON_OBS_START | L25: =VLOOKUP(G25,List!B:G,6,0) -> 6 | M25: 2022-04-12T01:31:54 | N25: =+"0000 CALL "&K25&" -Run" -> 0000 CALL dcsm-EF_HEPE_HV_ON_OBS_START -Run | Q25: 0.003125000003 | R25: 0.003125000003 | S25: 0.003981481481
C26: =D25 -> 2022-04-12T01:41:41 | D26: 2022-04-12T01:47:25 | G26: ENA_HV_ON_CNT | H26: =VLOOKUP(G26,List!B:C,2,0) -> 344 | K26: =VLOOKUP(G26,List!B:E,4,0) -> dcsm-EF_ENA_HV_ON_CNT | L26: =VLOOKUP(G26,List!B:G,6,0) -> 18 | M26: 2022-04-12T01:36:24 | N26: =+"0000 CALL "&K26&" -Run" -> 0000 CALL dcsm-EF_ENA_HV_ON_CNT -Run | Q26: 0.003981481481 | R26: 0.003981481481 | S26: 0.01969907407
C27: 2022-04-12T01:47:25 | D27: 2022-04-12T02:15:47 | G27: MEA1_HV_ON | H27: =VLOOKUP(G27,List!B:C,2,0) -> 1702 | K27: =VLOOKUP(G27,List!B:E,4,0) -> dcsm-EF_MEA1_HV_ON | L27: =VLOOKUP(G27,List!B:G,6,0) -> 27 | M27: 2022-04-12T01:42:08 | N27: 0000 CALL dcsm-EF_MEA1_HV_ON -Run | Q27: 0.01969907407 | R27: 0.01969907407 | S27: 0.0004861111083
C28: 2022-04-12T02:15:47 | D28: 2022-04-12T02:16:29 | F28: TLM mode change (MODE_5) | G28: TLM_MODE_5 | H28: =VLOOKUP(G28,List!B:C,2,0) -> 42 | K28: =VLOOKUP(G28,List!B:E,4,0) -> dcsm-EF_BUS_TLM_MODE_5 | L28: =VLOOKUP(G28,List!B:G,6,0) -> 2 | M28: 2022-04-12T02:10:30 | N28: 0000 CALL dcsm-EF_BUS_TLM_MODE_5 -Run | Q28: 0.0004861111083 | R28: 0.0004861111083 | S28: 1.086273148
C29: 2022-04-12T02:16:29 | D29: =C30 -> 2022-04-13T04:20:43 | E29: Observation B | H29: =(D29-C29)*3600*24 -> 93854 | I29: =H29/3600 -> 26.07055556 | L29: 0 | M29: 2022-04-12T02:11:12 | N29: ="0000 WAIT_SEC "&TEXT(H29,"#0") -> 0000 WAIT_SEC 93854 | Q29: 1.086273148 | R29: 1.086273148 | S29: 0.0004861111083
C30: =D30-H30/3600/24 -> 2022-04-13T04:20:43 | D30: =C31 -> 2022-04-13T04:21:25 | F30: TLM mode change (MODE_10) | G30: TLM_MODE_10 | H30: =VLOOKUP(G30,List!B:C,2,0) -> 42 | K30: =VLOOKUP(G30,List!B:E,4,0) -> dcsm-EF_BUS_TLM_MODE_10 | L30: =VLOOKUP(G30,List!B:G,6,0) -> 2 | M30: 2022-04-13T04:15:26 | N30: =+"0000 CALL "&K30&" -Run" -> 0000 CALL dcsm-EF_BUS_TLM_MODE_10 -Run | Q30: 0.0004861111083 | R30: 0.0004861111083 | S30: 0.002199074072
C31: =D31-H31/3600/24 -> 2022-04-13T04:21:25 | D31: =C32 -> 2022-04-13T04:24:35 | F31: SI HV OFF | G31: HEP_HV_OFF | H31: =VLOOKUP(G31,List!B:C,2,0) -> 190 | K31: =VLOOKUP(G31,List!B:E,4,0) -> dcsm-EF_HEPE_HV_OFF_OBS_OFF | L31: =VLOOKUP(G31,List!B:G,6,0) -> 5 | M31: 2022-04-13T04:16:08 | N31: 0000 CALL dcsm-EF_HEPE_HV_OFF_OBS_OFF -Run | Q31: 0.002199074072 | R31: 0.002199074072 | S31: 0.002291666664
C32: =D32-H32/3600/24 -> 2022-04-13T04:24:35 | D32: =C33 -> 2022-04-13T04:27:53 | G32: ENA_HV_OFF | H32: =VLOOKUP(G32,List!B:C,2,0) -> 198 | K32: =VLOOKUP(G32,List!B:E,4,0) -> dcsm-EF_ENA_HV_OFF | L32: =VLOOKUP(G32,List!B:G,6,0) -> 4 | M32: 2022-04-13T04:19:18 | N32: 0000 CALL dcsm-EF_ENA_HV_OFF -Run | Q32: 0.002291666664 | R32: 0.002291666664 | S32: 0.002106481479
C33: =D33-H33/3600/24 -> 2022-04-13T04:27:53 | D33: =C34 -> 2022-04-13T04:30:55 | G33: MEA1_HV_OFF | H33: =VLOOKUP(G33,List!B:C,2,0) -> 182 | K33: =VLOOKUP(G33,List!B:E,4,0) -> dcsm-EF_MEA1_HV_OFF | L33: =VLOOKUP(G33,List!B:G,6,0) -> 10 | M33: 2022-04-13T04:22:36 | N33: 0000 CALL dcsm-EF_MEA1_HV_OFF -Run | Q33: 0.002106481479 | R33: 0.002106481479 | S33: 0.01388888889
C34: 2022-04-13T04:30:55 | D34: =C34+H34/3600/24 -> 2022-04-13T04:50:55 | E34: WOL#2 | G34: =(C35-D33)*24*3600 -> 1800 | H34: 1200 | L34: 0 | M34: 2022-04-13T04:25:38 | N34: ="0000 WAIT_SEC "&TEXT(G34,"#0") -> 0000 WAIT_SEC 1800 | Q34: 0.01388888889 | R34: 0.02083333334 | S34: 0.01006944445
C35: =D34+10/60/24 -> 2022-04-13T05:00:55 | D35: =C35+H35/3600/24 -> 2022-04-13T05:05:25 | F35: SI HV ON | G35: HEP_HV_ON | H35: =VLOOKUP(G35,List!B:C,2,0) -> 270 | K35: =VLOOKUP(G35,List!B:E,4,0) -> dcsm-EF_HEPE_HV_ON_OBS_START | L35: =VLOOKUP(G35,List!B:G,6,0) -> 6 | M35: 2022-04-13T04:55:38 | N35: =+"0000 CALL "&K35&" -Run" -> 0000 CALL dcsm-EF_HEPE_HV_ON_OBS_START -Run | Q35: 0.003125000003 | R35: 0.003125000003 | S35: 0.003981481481
C36: =D35 -> 2022-04-13T05:05:25 | D36: 2022-04-13T05:11:09 | G36: ENA_HV_ON_CNT | H36: =VLOOKUP(G36,List!B:C,2,0) -> 344 | K36: =VLOOKUP(G36,List!B:E,4,0) -> dcsm-EF_ENA_HV_ON_CNT | L36: =VLOOKUP(G36,List!B:G,6,0) -> 18 | M36: 2022-04-13T05:00:08 | N36: =+"0000 CALL "&K36&" -Run" -> 0000 CALL dcsm-EF_ENA_HV_ON_CNT -Run | Q36: 0.003981481481 | R36: 0.003981481481 | S36: 0.01969907407
C37: 2022-04-13T05:11:09 | D37: 2022-04-13T05:39:31 | G37: MEA1_HV_ON | H37: =VLOOKUP(G37,List!B:C,2,0) -> 1702 | K37: =VLOOKUP(G37,List!B:E,4,0) -> dcsm-EF_MEA1_HV_ON | L37: =VLOOKUP(G37,List!B:G,6,0) -> 27 | M37: 2022-04-13T05:05:52 | N37: 0000 CALL dcsm-EF_MEA1_HV_ON -Run | Q37: 0.01969907407 | R37: 0.01969907407 | S37: 0.0004861111083
C38: 2022-04-13T05:39:31 | D38: 2022-04-13T05:40:13 | F38: TLM mode change (MODE_5) | G38: TLM_MODE_5 | H38: =VLOOKUP(G38,List!B:C,2,0) -> 42 | K38: =VLOOKUP(G38,List!B:E,4,0) -> dcsm-EF_BUS_TLM_MODE_5 | L38: =VLOOKUP(G38,List!B:G,6,0) -> 2 | M38: 2022-04-13T05:34:14 | N38: 0000 CALL dcsm-EF_BUS_TLM_MODE_5 -Run | Q38: 0.0004861111083 | R38: 0.0004861111083 | S38: 1.011782407
C39: 2022-04-13T05:40:13 | D39: =C40 -> 2022-04-14T05:57:11 | E39: Observation C | H39: =(D39-C39)*3600*24 -> 87418 | I39: =H39/3600 -> 24.28277778 | L39: 0 | M39: 2022-04-13T05:34:56 | N39: ="0000 WAIT_SEC "&TEXT(H39,"#0") -> 0000 WAIT_SEC 87418 | Q39: 1.011782407 | R39: 1.011782407 | S39: 0.0004861111083
C40: =D40-H40/3600/24 -> 2022-04-14T05:57:11 | D40: =C41 -> 2022-04-14T05:57:53 | F40: TLM mode change (MODE_10) | G40: TLM_MODE_10 | H40: =VLOOKUP(G40,List!B:C,2,0) -> 42 | K40: =VLOOKUP(G40,List!B:E,4,0) -> dcsm-EF_BUS_TLM_MODE_10 | L40: =VLOOKUP(G40,List!B:G,6,0) -> 2 | M40: 2022-04-14T05:51:54 | N40: =+"0000 CALL "&K40&" -Run" -> 0000 CALL dcsm-EF_BUS_TLM_MODE_10 -Run | Q40: 0.0004861111083 | R40: 0.0004861111083 | S40: 0.002199074072
C41: =D41-H41/3600/24 -> 2022-04-14T05:57:53 | D41: =C42 -> 2022-04-14T06:01:03 | F41: SI HV OFF | G41: HEP_HV_OFF | H41: =VLOOKUP(G41,List!B:C,2,0) -> 190 | K41: =VLOOKUP(G41,List!B:E,4,0) -> dcsm-EF_HEPE_HV_OFF_OBS_OFF | L41: =VLOOKUP(G41,List!B:G,6,0) -> 5 | M41: 2022-04-14T05:52:36 | N41: 0000 CALL dcsm-EF_HEPE_HV_OFF_OBS_OFF -Run | Q41: 0.002199074072 | R41: 0.002199074072 | S41: 0.002291666664
C42: =D42-H42/3600/24 -> 2022-04-14T06:01:03 | D42: =C43 -> 2022-04-14T06:04:21 | G42: ENA_HV_OFF | H42: =VLOOKUP(G42,List!B:C,2,0) -> 198 | K42: =VLOOKUP(G42,List!B:E,4,0) -> dcsm-EF_ENA_HV_OFF | L42: =VLOOKUP(G42,List!B:G,6,0) -> 4 | M42: 2022-04-14T05:55:46 | N42: 0000 CALL dcsm-EF_ENA_HV_OFF -Run | Q42: 0.002291666664 | R42: 0.002291666664 | S42: 0.002106481479
C43: =D43-H43/3600/24 -> 2022-04-14T06:04:21 | D43: =C44 -> 2022-04-14T06:07:23 | G43: MEA1_HV_OFF | H43: =VLOOKUP(G43,List!B:C,2,0) -> 182 | K43: =VLOOKUP(G43,List!B:E,4,0) -> dcsm-EF_MEA1_HV_OFF | L43: =VLOOKUP(G43,List!B:G,6,0) -> 10 | M43: 2022-04-14T05:59:04 | N43: 0000 CALL dcsm-EF_MEA1_HV_OFF -Run | Q43: 0.002106481479 | R43: 0.002106481479 | S43: 0.01388888889
C44: 2022-04-14T06:07:23 | D44: =C44+H44/3600/24 -> 2022-04-14T06:27:23 | E44: WOL#3 | G44: =(C45-D43)*24*3600 -> 1800 | H44: 1200 | L44: 0 | M44: 2022-04-14T06:02:06 | N44: ="0000 WAIT_SEC "&TEXT(G44,"#0") -> 0000 WAIT_SEC 1800 | Q44: 0.01388888889 | R44: 0.02083333334 | S44: 0.01006944445
C45: =D44+10/60/24 -> 2022-04-14T06:37:23 | D45: =C45+H45/3600/24 -> 2022-04-14T06:41:53 | F45: SI HV ON | G45: HEP_HV_ON | H45: =VLOOKUP(G45,List!B:C,2,0) -> 270 | K45: =VLOOKUP(G45,List!B:E,4,0) -> dcsm-EF_HEPE_HV_ON_OBS_START | L45: =VLOOKUP(G45,List!B:G,6,0) -> 6 | M45: 2022-04-14T06:32:06 | N45: =+"0000 CALL "&K45&" -Run" -> 0000 CALL dcsm-EF_HEPE_HV_ON_OBS_START -Run | Q45: 0.003125000003 | R45: 0.003125000003 | S45: 0.003981481481
C46: =D45 -> 2022-04-14T06:41:53 | D46: 2022-04-14T06:47:37 | G46: ENA_HV_ON_CNT | H46: =VLOOKUP(G46,List!B:C,2,0) -> 344 | K46: =VLOOKUP(G46,List!B:E,4,0) -> dcsm-EF_ENA_HV_ON_CNT | L46: =VLOOKUP(G46,List!B:G,6,0) -> 18 | M46: 2022-04-14T06:36:36 | N46: =+"0000 CALL "&K46&" -Run" -> 0000 CALL dcsm-EF_ENA_HV_ON_CNT -Run | Q46: 0.003981481481 | R46: 0.003981481481 | S46: 0.01969907407
C47: 2022-04-14T06:47:37 | D47: 2022-04-14T07:15:59 | G47: MEA1_HV_ON | H47: =VLOOKUP(G47,List!B:C,2,0) -> 1702 | K47: =VLOOKUP(G47,List!B:E,4,0) -> dcsm-EF_MEA1_HV_ON | L47: =VLOOKUP(G47,List!B:G,6,0) -> 27 | M47: 2022-04-14T06:42:20 | N47: 0000 CALL dcsm-EF_MEA1_HV_ON -Run | Q47: 0.01969907407 | R47: 0.01969907407 | S47: 0.0004861111083
C48: 2022-04-14T07:15:59 | D48: 2022-04-14T07:16:41 | F48: TLM mode change (MODE_5) | G48: TLM_MODE_5 | H48: =VLOOKUP(G48,List!B:C,2,0) -> 42 | K48: =VLOOKUP(G48,List!B:E,4,0) -> dcsm-EF_BUS_TLM_MODE_5 | L48: =VLOOKUP(G48,List!B:G,6,0) -> 2 | M48: 2022-04-14T07:10:42 | N48: 0000 CALL dcsm-EF_BUS_TLM_MODE_5 -Run | Q48: 0.0004861111083 | R48: 0.0004861111083 | S48: 0.7299652778
C49: 2022-04-14T07:16:41 | D49: =C50 -> 2022-04-15T00:47:50 | E49: Observation D | H49: =(D49-C49)*3600*24 -> 63069 | I49: =H49/3600 -> 17.51916667 | L49: 0 | M49: 2022-04-14T07:11:24 | N49: ="0000 WAIT_SEC "&TEXT(H49,"#0") -> 0000 WAIT_SEC 63069 | Q49: 0.7299652778 | R49: 0.7299652778 | S49: 0.0004861111083
C50: =D50-H50/3600/24 -> 2022-04-15T00:47:50 | D50: =C51 -> 2022-04-15T00:48:32 | F50: TLM mode change (MODE_10) | G50: TLM_MODE_10 | H50: =VLOOKUP(G50,List!B:C,2,0) -> 42 | K50: =VLOOKUP(G50,List!B:E,4,0) -> dcsm-EF_BUS_TLM_MODE_10 | L50: =VLOOKUP(G50,List!B:G,6,0) -> 2 | M50: 2022-04-15T00:42:33 | N50: =+"0000 CALL "&K50&" -Run" -> 0000 CALL dcsm-EF_BUS_TLM_MODE_10 -Run | Q50: 0.0004861111083 | R50: 0.0004861111083 | S50: 0.002199074072
C51: =D51-H51/3600/24 -> 2022-04-15T00:48:32 | D51: =C52 -> 2022-04-15T00:51:42 | F51: SI HV OFF | G51: HEP_HV_OFF | H51: =VLOOKUP(G51,List!B:C,2,0) -> 190 | K51: =VLOOKUP(G51,List!B:E,4,0) -> dcsm-EF_HEPE_HV_OFF_OBS_OFF | L51: =VLOOKUP(G51,List!B:G,6,0) -> 5 | M51: 2022-04-15T00:43:15 | N51: 0000 CALL dcsm-EF_HEPE_HV_OFF_OBS_OFF -Run | Q51: 0.002199074072 | R51: 0.002199074072 | S51: 0.002291666664
C52: =D52-H52/3600/24 -> 2022-04-15T00:51:42 | D52: =C53 -> 2022-04-15T00:55:00 | G52: ENA_HV_OFF | H52: =VLOOKUP(G52,List!B:C,2,0) -> 198 | K52: =VLOOKUP(G52,List!B:E,4,0) -> dcsm-EF_ENA_HV_OFF | L52: =VLOOKUP(G52,List!B:G,6,0) -> 4 | M52: 2022-04-15T00:46:25 | N52: 0000 CALL dcsm-EF_ENA_HV_OFF -Run | Q52: 0.002291666664 | R52: 0.002291666664 | S52: 0.002106481479
C53: =D53-H53/3600/24 -> 2022-04-15T00:55:00 | D53: =C54 -> 2022-04-15T00:58:02 | G53: MEA1_HV_OFF | H53: =VLOOKUP(G53,List!B:C,2,0) -> 182 | K53: =VLOOKUP(G53,List!B:E,4,0) -> dcsm-EF_MEA1_HV_OFF | L53: =VLOOKUP(G53,List!B:G,6,0) -> 10 | M53: 2022-04-15T00:49:43 | N53: 0000 CALL dcsm-EF_MEA1_HV_OFF -Run | Q53: 0.002106481479 | R53: 0.002106481479 | S53: 0.01388888889
C54: 2022-04-15T00:58:02 | D54: =C54+H54/3600/24 -> 2022-04-15T01:18:02 | E54: WOL#4 | G54: =(C55-D53)*24*3600 -> 1800 | H54: 1200 | L54: 0 | M54: 2022-04-15T00:52:45 | N54: ="0000 WAIT_SEC "&TEXT(G54,"#0") -> 0000 WAIT_SEC 1800 | Q54: 0.01388888889 | R54: 0.02083333334 | S54: 0.01006944445
C55: =D54+10/60/24 -> 2022-04-15T01:28:02 | D55: =C55+H55/3600/24 -> 2022-04-15T01:32:32 | F55: SI HV ON | G55: HEP_HV_ON | H55: =VLOOKUP(G55,List!B:C,2,0) -> 270 | K55: =VLOOKUP(G55,List!B:E,4,0) -> dcsm-EF_HEPE_HV_ON_OBS_START | L55: =VLOOKUP(G55,List!B:G,6,0) -> 6 | M55: 2022-04-15T01:22:45 | N55: =+"0000 CALL "&K55&" -Run" -> 0000 CALL dcsm-EF_HEPE_HV_ON_OBS_START -Run | Q55: 0.003125000003 | R55: 0.003125000003 | S55: 0.003981481481
C56: =D55 -> 2022-04-15T01:32:32 | D56: 2022-04-15T01:38:16 | G56: ENA_HV_ON_CNT | H56: =VLOOKUP(G56,List!B:C,2,0) -> 344 | K56: =VLOOKUP(G56,List!B:E,4,0) -> dcsm-EF_ENA_HV_ON_CNT | L56: =VLOOKUP(G56,List!B:G,6,0) -> 18 | M56: 2022-04-15T01:27:15 | N56: =+"0000 CALL "&K56&" -Run" -> 0000 CALL dcsm-EF_ENA_HV_ON_CNT -Run | Q56: 0.003981481481 | R56: 0.003981481481 | S56: 0.01969907407
C57: 2022-04-15T01:38:16 | D57: 2022-04-15T02:06:38 | G57: MEA1_HV_ON | H57: =VLOOKUP(G57,List!B:C,2,0) -> 1702 | K57: =VLOOKUP(G57,List!B:E,4,0) -> dcsm-EF_MEA1_HV_ON | L57: =VLOOKUP(G57,List!B:G,6,0) -> 27 | M57: 2022-04-15T01:32:59 | N57: 0000 CALL dcsm-EF_MEA1_HV_ON -Run | Q57: 0.01969907407 | R57: 0.01969907407 | S57: 0.0004861111083
C58: 2022-04-15T02:06:38 | D58: 2022-04-15T02:07:20 | F58: TLM mode change (MODE_5) | G58: TLM_MODE_5 | H58: =VLOOKUP(G58,List!B:C,2,0) -> 42 | K58: =VLOOKUP(G58,List!B:E,4,0) -> dcsm-EF_BUS_TLM_MODE_5 | L58: =VLOOKUP(G58,List!B:G,6,0) -> 2 | M58: 2022-04-15T02:01:21 | N58: 0000 CALL dcsm-EF_BUS_TLM_MODE_5 -Run | Q58: 0.0004861111083 | R58: 0.0004861111083 | S58: 0.7418287037
C59: 2022-04-15T02:07:20 | D59: =C60 -> 2022-04-15T19:55:34 | E59: Observation E | H59: =(D59-C59)*3600*24 -> 64094 | I59: =H59/3600 -> 17.80388889 | L59: 0 | M59: 2022-04-15T02:02:03 | N59: ="0000 WAIT_SEC "&TEXT(H59,"#0") -> 0000 WAIT_SEC 64094 | Q59: 0.7418287037 | R59: 0.7418287037 | S59: 0.0004861111083
C60: =D60-H60/3600/24 -> 2022-04-15T19:55:34 | D60: =C61 -> 2022-04-15T19:56:16 | F60: TLM mode change (MODE_10) | G60: TLM_MODE_10 | H60: =VLOOKUP(G60,List!B:C,2,0) -> 42 | K60: =VLOOKUP(G60,List!B:E,4,0) -> dcsm-EF_BUS_TLM_MODE_10 | L60: =VLOOKUP(G60,List!B:G,6,0) -> 2 | M60: 2022-04-15T19:50:17 | N60: =+"0000 CALL "&K60&" -Run" -> 0000 CALL dcsm-EF_BUS_TLM_MODE_10 -Run | Q60: 0.0004861111083 | R60: 0.0004861111083 | S60: 0.002199074072
C61: =D61-H61/3600/24 -> 2022-04-15T19:56:16 | D61: =C62 -> 2022-04-15T19:59:26 | F61: SI HV OFF | G61: HEP_HV_OFF | H61: =VLOOKUP(G61,List!B:C,2,0) -> 190 | K61: =VLOOKUP(G61,List!B:E,4,0) -> dcsm-EF_HEPE_HV_OFF_OBS_OFF | L61: =VLOOKUP(G61,List!B:G,6,0) -> 5 | M61: 2022-04-15T19:50:59 | N61: 0000 CALL dcsm-EF_HEPE_HV_OFF_OBS_OFF -Run | Q61: 0.002199074072 | R61: 0.002199074072 | S61: 0.002291666664
C62: =D62-H62/3600/24 -> 2022-04-15T19:59:26 | D62: =C63 -> 2022-04-15T20:02:44 | G62: ENA_HV_OFF | H62: =VLOOKUP(G62,List!B:C,2,0) -> 198 | K62: =VLOOKUP(G62,List!B:E,4,0) -> dcsm-EF_ENA_HV_OFF | L62: =VLOOKUP(G62,List!B:G,6,0) -> 4 | M62: 2022-04-15T19:54:09 | N62: 0000 CALL dcsm-EF_ENA_HV_OFF -Run | Q62: 0.002291666664 | R62: 0.002291666664 | S62: 0.002106481479
C63: =D63-H63/3600/24 -> 2022-04-15T20:02:44 | D63: =C64 -> 2022-04-15T20:05:46 | G63: MEA1_HV_OFF | H63: =VLOOKUP(G63,List!B:C,2,0) -> 182 | K63: =VLOOKUP(G63,List!B:E,4,0) -> dcsm-EF_MEA1_HV_OFF | L63: =VLOOKUP(G63,List!B:G,6,0) -> 10 | M63: 2022-04-15T19:57:27 | N63: 0000 CALL dcsm-EF_MEA1_HV_OFF -Run | Q63: 0.002106481479 | R63: 0.002106481479 | S63: 0.01388888889
C64: 2022-04-15T20:05:46 | D64: =C64+H64/3600/24 -> 2022-04-15T20:25:46 | E64: WOL#5 | G64: =(C65-D63)*24*3600 -> 1800 | H64: 1200 | L64: 0 | M64: 2022-04-15T20:00:29 | N64: ="0000 WAIT_SEC "&TEXT(G64,"#0") -> 0000 WAIT_SEC 1800 | Q64: 0.01388888889 | R64: 0.02083333334 | S64: 0.01006944445
C65: =D64+10/60/24 -> 2022-04-15T20:35:46 | D65: =C65+H65/3600/24 -> 2022-04-15T20:40:16 | F65: SI HV ON | G65: HEP_HV_ON | H65: =VLOOKUP(G65,List!B:C,2,0) -> 270 | K65: =VLOOKUP(G65,List!B:E,4,0) -> dcsm-EF_HEPE_HV_ON_OBS_START | L65: =VLOOKUP(G65,List!B:G,6,0) -> 6 | M65: 2022-04-15T20:30:29 | N65: =+"0000 CALL "&K65&" -Run" -> 0000 CALL dcsm-EF_HEPE_HV_ON_OBS_START -Run | Q65: 0.003125000003 | R65: 0.003125000003 | S65: 0.003981481481
C66: =D65 -> 2022-04-15T20:40:16 | D66: 2022-04-15T20:46:00 | G66: ENA_HV_ON_CNT | H66: =VLOOKUP(G66,List!B:C,2,0) -> 344 | K66: =VLOOKUP(G66,List!B:E,4,0) -> dcsm-EF_ENA_HV_ON_CNT | L66: =VLOOKUP(G66,List!B:G,6,0) -> 18 | M66: 2022-04-15T20:34:59 | N66: =+"0000 CALL "&K66&" -Run" -> 0000 CALL dcsm-EF_ENA_HV_ON_CNT -Run | Q66: 0.003981481481 | R66: 0.003981481481 | S66: 0.01969907407
C67: 2022-04-15T20:46:00 | D67: 2022-04-15T21:14:22 | G67: MEA1_HV_ON | H67: =VLOOKUP(G67,List!B:C,2,0) -> 1702 | K67: =VLOOKUP(G67,List!B:E,4,0) -> dcsm-EF_MEA1_HV_ON | L67: =VLOOKUP(G67,List!B:G,6,0) -> 27 | M67: 2022-04-15T20:40:43 | N67: 0000 CALL dcsm-EF_MEA1_HV_ON -Run | Q67: 0.01969907407 | R67: 0.01969907407 | S67: 0.0004861111083
C68: 2022-04-15T21:14:22 | D68: 2022-04-15T21:15:04 | F68: TLM mode change (MODE_5) | G68: TLM_MODE_5 | H68: =VLOOKUP(G68,List!B:C,2,0) -> 42 | K68: =VLOOKUP(G68,List!B:E,4,0) -> dcsm-EF_BUS_TLM_MODE_5 | L68: =VLOOKUP(G68,List!B:G,6,0) -> 2 | M68: 2022-04-15T21:09:05 | N68: 0000 CALL dcsm-EF_BUS_TLM_MODE_5 -Run | Q68: 0.0004861111083 | R68: 0.0004861111083 | S68: 0.8494791667
C69: 2022-04-15T21:15:04 | D69: =C70 -> 2022-04-16T17:38:19 | E69: Observation F | H69: =(D69-C69)*3600*24 -> 73395 | I69: =H69/3600 -> 20.3875 | L69: 0 | M69: 2022-04-15T21:09:47 | N69: ="0000 WAIT_SEC "&TEXT(H69,"#0") -> 0000 WAIT_SEC 73395 | Q69: 0.8494791667 | R69: 0.8494791667 | S69: 0.0004861111083
C70: =D70-H70/3600/24 -> 2022-04-16T17:38:19 | D70: =C71 -> 2022-04-16T17:39:01 | F70: TLM mode change (MODE_10) | G70: TLM_MODE_10 | H70: =VLOOKUP(G70,List!B:C,2,0) -> 42 | K70: =VLOOKUP(G70,List!B:E,4,0) -> dcsm-EF_BUS_TLM_MODE_10 | L70: =VLOOKUP(G70,List!B:G,6,0) -> 2 | M70: =C70-317/3600/24 -> 2022-04-16T17:33:02 | N70: =+"0000 CALL "&K70&" -Run" -> 0000 CALL dcsm-EF_BUS_TLM_MODE_10 -Run | Q70: 0.0004861111083 | R70: 0.0004861111083 | S70: 0.002199074072
C71: =D71-H71/3600/24 -> 2022-04-16T17:39:01 | D71: =C72 -> 2022-04-16T17:42:11 | F71: SI HV OFF | G71: HEP_HV_OFF | H71: =VLOOKUP(G71,List!B:C,2,0) -> 190 | K71: =VLOOKUP(G71,List!B:E,4,0) -> dcsm-EF_HEPE_HV_OFF_OBS_OFF | L71: =VLOOKUP(G71,List!B:G,6,0) -> 5 | M71: 2022-04-16T17:33:44 | N71: 0000 CALL dcsm-EF_HEPE_HV_OFF_OBS_OFF -Run | Q71: =+D71-C71 -> 0.002199074072 | R71: =+C72-C71 -> 0.002199074072 | S71: 0.002291666664
C72: =D72-H72/3600/24 -> 2022-04-16T17:42:11 | D72: =C73 -> 2022-04-16T17:45:29 | G72: ENA_HV_OFF | H72: =VLOOKUP(G72,List!B:C,2,0) -> 198 | K72: =VLOOKUP(G72,List!B:E,4,0) -> dcsm-EF_ENA_HV_OFF | L72: =VLOOKUP(G72,List!B:G,6,0) -> 4 | M72: 2022-04-16T17:36:54 | N72: 0000 CALL dcsm-EF_ENA_HV_OFF -Run | Q72: 0.002291666664 | R72: 0.002291666664 | S72: 0.002106481479
C73: =D73-H73/3600/24 -> 2022-04-16T17:45:29 | D73: =C74 -> 2022-04-16T17:48:31 | G73: MEA1_HV_OFF | H73: =VLOOKUP(G73,List!B:C,2,0) -> 182 | K73: =VLOOKUP(G73,List!B:E,4,0) -> dcsm-EF_MEA1_HV_OFF | L73: =VLOOKUP(G73,List!B:G,6,0) -> 10 | M73: 2022-04-16T17:40:12 | N73: 0000 CALL dcsm-EF_MEA1_HV_OFF -Run | Q73: 0.002106481479 | R73: 0.002106481479 | S73: 0.01388888889
C74: 2022-04-16T17:48:31 | D74: =C74+H74/3600/24 -> 2022-04-16T18:08:31 | E74: WOL#6 | G74: =(C75-D73)*24*3600 -> 1800 | H74: 1200 | L74: 0 | M74: 2022-04-16T17:43:14 | N74: ="0000 WAIT_SEC "&TEXT(G74,"#0") -> 0000 WAIT_SEC 1800 | Q74: 0.01388888889 | R74: 0.02083333334 | S74: 0.01006944445
C75: =D74+10/60/24 -> 2022-04-16T18:18:31 | D75: =C75+H75/3600/24 -> 2022-04-16T18:23:01 | F75: SI HV ON | G75: HEP_HV_ON | H75: =VLOOKUP(G75,List!B:C,2,0) -> 270 | K75: =VLOOKUP(G75,List!B:E,4,0) -> dcsm-EF_HEPE_HV_ON_OBS_START | L75: =VLOOKUP(G75,List!B:G,6,0) -> 6 | M75: 2022-04-16T18:13:14 | N75: =+"0000 CALL "&K75&" -Run" -> 0000 CALL dcsm-EF_HEPE_HV_ON_OBS_START -Run | Q75: 0.003125000003 | R75: 0.003125000003 | S75: 0.003981481481
C76: =D75 -> 2022-04-16T18:23:01 | D76: 2022-04-16T18:28:45 | G76: ENA_HV_ON_CNT | H76: =VLOOKUP(G76,List!B:C,2,0) -> 344 | K76: =VLOOKUP(G76,List!B:E,4,0) -> dcsm-EF_ENA_HV_ON_CNT | L76: =VLOOKUP(G76,List!B:G,6,0) -> 18 | M76: 2022-04-16T18:17:44 | N76: =+"0000 CALL "&K76&" -Run" -> 0000 CALL dcsm-EF_ENA_HV_ON_CNT -Run | Q76: 0.003981481481 | R76: 0.003981481481 | S76: 0.01969907407
C77: 2022-04-16T18:28:45 | D77: 2022-04-16T18:57:07 | G77: MEA1_HV_ON | H77: =VLOOKUP(G77,List!B:C,2,0) -> 1702 | K77: =VLOOKUP(G77,List!B:E,4,0) -> dcsm-EF_MEA1_HV_ON | L77: =VLOOKUP(G77,List!B:G,6,0) -> 27 | M77: 2022-04-16T18:23:28 | N77: 0000 CALL dcsm-EF_MEA1_HV_ON -Run | Q77: 0.01969907407 | R77: 0.01969907407 | S77: 0.0004861111083
C78: 2022-04-16T18:57:07 | D78: 2022-04-16T18:57:49 | F78: TLM mode change (MODE_5) | G78: TLM_MODE_5 | H78: =VLOOKUP(G78,List!B:C,2,0) -> 42 | K78: =VLOOKUP(G78,List!B:E,4,0) -> dcsm-EF_BUS_TLM_MODE_5 | L78: =VLOOKUP(G78,List!B:G,6,0) -> 2 | M78: 2022-04-16T18:51:50 | N78: 0000 CALL dcsm-EF_BUS_TLM_MODE_5 -Run | Q78: 0.0004861111083 | R78: 0.0004861111083 | S78: 0.9212268519
C79: 2022-04-16T18:57:49 | D79: =C80 -> 2022-04-17T17:04:23 | E79: Observation G | H79: =(D79-C79)*3600*24 -> 79594 | I79: =H79/3600 -> 22.10944444 | L79: 0 | M79: 2022-04-16T18:52:32 | N79: ="0000 WAIT_SEC "&TEXT(H79,"#0") -> 0000 WAIT_SEC 79594 | Q79: 0.9212268519 | R79: 0.9212268519 | S79: 0.0004861111083
C80: =D80-H80/3600/24 -> 2022-04-17T17:04:23 | D80: =C81 -> 2022-04-17T17:05:05 | F80: TLM mode change (MODE_10) | G80: TLM_MODE_10 | H80: =VLOOKUP(G80,List!B:C,2,0) -> 42 | K80: =VLOOKUP(G80,List!B:E,4,0) -> dcsm-EF_BUS_TLM_MODE_10 | L80: =VLOOKUP(G80,List!B:G,6,0) -> 2 | M80: 2022-04-17T16:59:06 | N80: =+"0000 CALL "&K80&" -Run" -> 0000 CALL dcsm-EF_BUS_TLM_MODE_10 -Run | Q80: 0.0004861111083 | R80: 0.0004861111083 | S80: 0.002199074072
C81: =D81-H81/3600/24 -> 2022-04-17T17:05:05 | D81: =C82 -> 2022-04-17T17:08:15 | F81: SI HV OFF | G81: HEP_HV_OFF | H81: =VLOOKUP(G81,List!B:C,2,0) -> 190 | K81: =VLOOKUP(G81,List!B:E,4,0) -> dcsm-EF_HEPE_HV_OFF_OBS_OFF | L81: =VLOOKUP(G81,List!B:G,6,0) -> 5 | M81: 2022-04-17T16:59:48 | N81: 0000 CALL dcsm-EF_HEPE_HV_OFF_OBS_OFF -Run | Q81: 0.002199074072 | R81: 0.002199074072 | S81: 0.002291666664
C82: =D82-H82/3600/24 -> 2022-04-17T17:08:15 | D82: =C83 -> 2022-04-17T17:11:33 | G82: ENA_HV_OFF | H82: =VLOOKUP(G82,List!B:C,2,0) -> 198 | K82: =VLOOKUP(G82,List!B:E,4,0) -> dcsm-EF_ENA_HV_OFF | L82: =VLOOKUP(G82,List!B:G,6,0) -> 4 | M82: 2022-04-17T17:02:58 | N82: 0000 CALL dcsm-EF_ENA_HV_OFF -Run | Q82: 0.002291666664 | R82: 0.002291666664 | S82: 0.002106481479
C83: =D83-H83/3600/24 -> 2022-04-17T17:11:33 | D83: =C84 -> 2022-04-17T17:14:35 | G83: MEA1_HV_OFF | H83: =VLOOKUP(G83,List!B:C,2,0) -> 182 | K83: =VLOOKUP(G83,List!B:E,4,0) -> dcsm-EF_MEA1_HV_OFF | L83: =VLOOKUP(G83,List!B:G,6,0) -> 10 | M83: 2022-04-17T17:06:16 | N83: 0000 CALL dcsm-EF_MEA1_HV_OFF -Run | Q83: 0.002106481479 | R83: 0.002106481479 | S83: 0.01388888889
C84: 2022-04-17T17:14:35 | D84: =C84+H84/3600/24 -> 2022-04-17T17:34:35 | E84: WOL#7 | G84: =(C85-D83)*24*3600 -> 1800 | H84: 1200 | L84: 0 | M84: 2022-04-17T17:09:18 | N84: ="0000 WAIT_SEC "&TEXT(G84,"#0") -> 0000 WAIT_SEC 1800 | Q84: 0.01388888889 | R84: 0.02083333334 | S84: 0.01006944445
C85: =D84+10/60/24 -> 2022-04-17T17:44:35 | D85: =C85+H85/3600/24 -> 2022-04-17T17:49:05 | F85: SI HV ON | G85: HEP_HV_ON | H85: =VLOOKUP(G85,List!B:C,2,0) -> 270 | K85: =VLOOKUP(G85,List!B:E,4,0) -> dcsm-EF_HEPE_HV_ON_OBS_START | L85: =VLOOKUP(G85,List!B:G,6,0) -> 6 | M85: 2022-04-17T17:39:18 | N85: =+"0000 CALL "&K85&" -Run" -> 0000 CALL dcsm-EF_HEPE_HV_ON_OBS_START -Run | Q85: 0.003125000003 | R85: 0.003125000003 | S85: 0.003981481481
C86: =D85 -> 2022-04-17T17:49:05 | D86: 2022-04-17T17:54:49 | G86: ENA_HV_ON_CNT | H86: =VLOOKUP(G86,List!B:C,2,0) -> 344 | K86: =VLOOKUP(G86,List!B:E,4,0) -> dcsm-EF_ENA_HV_ON_CNT | L86: =VLOOKUP(G86,List!B:G,6,0) -> 18 | M86: 2022-04-17T17:43:48 | N86: =+"0000 CALL "&K86&" -Run" -> 0000 CALL dcsm-EF_ENA_HV_ON_CNT -Run | Q86: 0.003981481481 | R86: 0.003981481481 | S86: 0.01969907407
C87: 2022-04-17T17:54:49 | D87: 2022-04-17T18:23:11 | G87: MEA1_HV_ON | H87: =VLOOKUP(G87,List!B:C,2,0) -> 1702 | K87: =VLOOKUP(G87,List!B:E,4,0) -> dcsm-EF_MEA1_HV_ON | L87: =VLOOKUP(G87,List!B:G,6,0) -> 27 | M87: 2022-04-17T17:49:32 | N87: 0000 CALL dcsm-EF_MEA1_HV_ON -Run | Q87: 0.01969907407 | R87: 0.01969907407 | S87: 0.0004861111083
C88: 2022-04-17T18:23:11 | D88: 2022-04-17T18:23:53 | F88: TLM mode change (MODE_5) | G88: TLM_MODE_5 | H88: =VLOOKUP(G88,List!B:C,2,0) -> 42 | K88: =VLOOKUP(G88,List!B:E,4,0) -> dcsm-EF_BUS_TLM_MODE_5 | L88: =VLOOKUP(G88,List!B:G,6,0) -> 2 | M88: 2022-04-17T18:17:54 | N88: 0000 CALL dcsm-EF_BUS_TLM_MODE_5 -Run | Q88: 0.0004861111083 | R88: 0.0004861111083 | S88: 0.9609722222
C89: 2022-04-17T18:23:53 | D89: =C90 -> 2022-04-18T17:27:41 | E89: Observation H | H89: =(D89-C89)*3600*24 -> 83028 | I89: =H89/3600 -> 23.06333333 | L89: 0 | M89: 2022-04-17T18:18:36 | N89: ="0000 WAIT_SEC "&TEXT(H89,"#0") -> 0000 WAIT_SEC 83028 | Q89: 0.9609722222 | R89: 0.9609722222 | S89: 0.0004861111083
C90: =D90-H90/3600/24 -> 2022-04-18T17:27:41 | D90: =C91 -> 2022-04-18T17:28:23 | F90: TLM mode change (MODE_10) | G90: TLM_MODE_10 | H90: =VLOOKUP(G90,List!B:C,2,0) -> 42 | K90: =VLOOKUP(G90,List!B:E,4,0) -> dcsm-EF_BUS_TLM_MODE_10 | L90: =VLOOKUP(G90,List!B:G,6,0) -> 2 | M90: 2022-04-18T17:22:24 | N90: =+"0000 CALL "&K90&" -Run" -> 0000 CALL dcsm-EF_BUS_TLM_MODE_10 -Run | Q90: 0.0004861111083 | R90: 0.0004861111083 | S90: 0.002199074072
C91: =D91-H91/3600/24 -> 2022-04-18T17:28:23 | D91: =C92 -> 2022-04-18T17:31:33 | F91: SI HV OFF | G91: HEP_HV_OFF | H91: =VLOOKUP(G91,List!B:C,2,0) -> 190 | K91: =VLOOKUP(G91,List!B:E,4,0) -> dcsm-EF_HEPE_HV_OFF_OBS_OFF | L91: =VLOOKUP(G91,List!B:G,6,0) -> 5 | M91: 2022-04-18T17:23:06 | N91: 0000 CALL dcsm-EF_HEPE_HV_OFF_OBS_OFF -Run | Q91: 0.002199074072 | R91: 0.002199074072 | S91: 0.002291666664
C92: =D92-H92/3600/24 -> 2022-04-18T17:31:33 | D92: =C93 -> 2022-04-18T17:34:51 | G92: ENA_HV_OFF | H92: =VLOOKUP(G92,List!B:C,2,0) -> 198 | K92: =VLOOKUP(G92,List!B:E,4,0) -> dcsm-EF_ENA_HV_OFF | L92: =VLOOKUP(G92,List!B:G,6,0) -> 4 | M92: 2022-04-18T17:26:16 | N92: 0000 CALL dcsm-EF_ENA_HV_OFF -Run | Q92: 0.002291666664 | R92: 0.002291666664 | S92: 0.002106481479
C93: =D93-H93/3600/24 -> 2022-04-18T17:34:51 | D93: =C94 -> 2022-04-18T17:37:53 | G93: MEA1_HV_OFF | H93: =VLOOKUP(G93,List!B:C,2,0) -> 182 | K93: =VLOOKUP(G93,List!B:E,4,0) -> dcsm-EF_MEA1_HV_OFF | L93: =VLOOKUP(G93,List!B:G,6,0) -> 10 | M93: 2022-04-18T17:29:34 | N93: 0000 CALL dcsm-EF_MEA1_HV_OFF -Run | Q93: 0.002106481479 | R93: 0.002106481479 | S93: 0.01388888889
C94: 2022-04-18T17:37:53 | D94: =C94+H94/3600/24 -> 2022-04-18T17:57:53 | E94: WOL#8 | G94: =(C95-D93)*24*3600 -> 1800 | H94: 1200 | L94: 0 | M94: 2022-04-18T17:32:36 | N94: ="0000 WAIT_SEC "&TEXT(G94,"#0") -> 0000 WAIT_SEC 1800 | Q94: 0.01388888889 | R94: 0.02083333334 | S94: 0.01006944445
C95: =D94+10/60/24 -> 2022-04-18T18:07:53 | D95: =C95+H95/3600/24 -> 2022-04-18T18:12:23 | F95: SI HV ON | G95: HEP_HV_ON | H95: =VLOOKUP(G95,List!B:C,2,0) -> 270 | K95: =VLOOKUP(G95,List!B:E,4,0) -> dcsm-EF_HEPE_HV_ON_OBS_START | L95: =VLOOKUP(G95,List!B:G,6,0) -> 6 | M95: 2022-04-18T18:02:36 | N95: =+"0000 CALL "&K95&" -Run" -> 0000 CALL dcsm-EF_HEPE_HV_ON_OBS_START -Run | Q95: 0.003125000003 | R95: 0.003125000003 | S95: 0.003981481481
C96: =D95 -> 2022-04-18T18:12:23 | D96: 2022-04-18T18:18:07 | G96: ENA_HV_ON_CNT | H96: =VLOOKUP(G96,List!B:C,2,0) -> 344 | K96: =VLOOKUP(G96,List!B:E,4,0) -> dcsm-EF_ENA_HV_ON_CNT | L96: =VLOOKUP(G96,List!B:G,6,0) -> 18 | M96: 2022-04-18T18:07:06 | N96: =+"0000 CALL "&K96&" -Run" -> 0000 CALL dcsm-EF_ENA_HV_ON_CNT -Run | Q96: 0.003981481481 | R96: 0.003981481481 | S96: 0.01969907407
C97: 2022-04-18T18:18:07 | D97: 2022-04-18T18:46:29 | G97: MEA1_HV_ON | H97: =VLOOKUP(G97,List!B:C,2,0) -> 1702 | K97: =VLOOKUP(G97,List!B:E,4,0) -> dcsm-EF_MEA1_HV_ON | L97: =VLOOKUP(G97,List!B:G,6,0) -> 27 | M97: 2022-04-18T18:12:50 | N97: 0000 CALL dcsm-EF_MEA1_HV_ON -Run | Q97: 0.01969907407 | R97: 0.01969907407 | S97: 0.0004861111083
C98: 2022-04-18T18:46:29 | D98: 2022-04-18T18:47:11 | F98: TLM mode change (MODE_5) | G98: TLM_MODE_5 | H98: =VLOOKUP(G98,List!B:C,2,0) -> 42 | K98: =VLOOKUP(G98,List!B:E,4,0) -> dcsm-EF_BUS_TLM_MODE_5 | L98: =VLOOKUP(G98,List!B:G,6,0) -> 2 | M98: 2022-04-18T18:41:12 | N98: 0000 CALL dcsm-EF_BUS_TLM_MODE_5 -Run | Q98: 0.0004861111083 | R98: 0.0004861111083 | S98: 0.9681018519
C99: 2022-04-18T18:47:11 | D99: =C100 -> 2022-04-19T18:01:15 | E99: Observation I | H99: =(D99-C99)*3600*24 -> 83644 | I99: =H99/3600 -> 23.23444444 | L99: 0 | M99: 2022-04-18T18:41:54 | N99: ="0000 WAIT_SEC "&TEXT(H99,"#0") -> 0000 WAIT_SEC 83644 | Q99: 0.9681018519 | R99: 0.9681018519 | S99: 0.0004861111083
C100: =D100-H100/3600/24 -> 2022-04-19T18:01:15 | D100: =C101 -> 2022-04-19T18:01:57 | F100: TLM mode change (MODE_10) | G100: TLM_MODE_10 | H100: =VLOOKUP(G100,List!B:C,2,0) -> 42 | K100: =VLOOKUP(G100,List!B:E,4,0) -> dcsm-EF_BUS_TLM_MODE_10 | L100: =VLOOKUP(G100,List!B:G,6,0) -> 2 | M100: 2022-04-19T17:55:58 | N100: =+"0000 CALL "&K100&" -Run" -> 0000 CALL dcsm-EF_BUS_TLM_MODE_10 -Run | Q100: 0.0004861111083 | R100: 0.0004861111083 | S100: 0.002199074072
C101: =D101-H101/3600/24 -> 2022-04-19T18:01:57 | D101: =C102 -> 2022-04-19T18:05:07 | F101: SI HV OFF | G101: HEP_HV_OFF | H101: =VLOOKUP(G101,List!B:C,2,0) -> 190 | K101: =VLOOKUP(G101,List!B:E,4,0) -> dcsm-EF_HEPE_HV_OFF_OBS_OFF | L101: =VLOOKUP(G101,List!B:G,6,0) -> 5 | M101: 2022-04-19T17:56:40 | N101: 0000 CALL dcsm-EF_HEPE_HV_OFF_OBS_OFF -Run | Q101: 0.002199074072 | R101: 0.002199074072 | S101: 0.002291666664
C102: =D102-H102/3600/24 -> 2022-04-19T18:05:07 | D102: =C103 -> 2022-04-19T18:08:25 | G102: ENA_HV_OFF | H102: =VLOOKUP(G102,List!B:C,2,0) -> 198 | K102: =VLOOKUP(G102,List!B:E,4,0) -> dcsm-EF_ENA_HV_OFF | L102: =VLOOKUP(G102,List!B:G,6,0) -> 4 | M102: 2022-04-19T17:59:50 | N102: 0000 CALL dcsm-EF_ENA_HV_OFF -Run | Q102: 0.002291666664 | R102: 0.002291666664 | S102: 0.002106481479
C103: =D103-H103/3600/24 -> 2022-04-19T18:08:25 | D103: =C104 -> 2022-04-19T18:11:27 | G103: MEA1_HV_OFF | H103: =VLOOKUP(G103,List!B:C,2,0) -> 182 | K103: =VLOOKUP(G103,List!B:E,4,0) -> dcsm-EF_MEA1_HV_OFF | L103: =VLOOKUP(G103,List!B:G,6,0) -> 10 | M103: 2022-04-19T18:03:08 | N103: 0000 CALL dcsm-EF_MEA1_HV_OFF -Run | Q103: 0.002106481479 | R103: 0.002106481479 | S103: 0.01388888889
C104: 2022-04-19T18:11:27 | D104: =C104+H104/3600/24 -> 2022-04-19T18:31:27 | E104: WOL#9 | G104: =(C105-D103)*24*3600 -> 1800 | H104: 1200 | L104: 0 | M104: 2022-04-19T18:06:10 | N104: ="0000 WAIT_SEC "&TEXT(G104,"#0") -> 0000 WAIT_SEC 1800 | Q104: 0.01388888889 | R104: 0.02083333334 | S104: 0.01006944445
C105: =D104+10/60/24 -> 2022-04-19T18:41:27 | D105: =C105+H105/3600/24 -> 2022-04-19T18:45:57 | F105: SI HV ON | G105: HEP_HV_ON | H105: =VLOOKUP(G105,List!B:C,2,0) -> 270 | K105: =VLOOKUP(G105,List!B:E,4,0) -> dcsm-EF_HEPE_HV_ON_OBS_START | L105: =VLOOKUP(G105,List!B:G,6,0) -> 6 | M105: 2022-04-19T18:36:10 | N105: =+"0000 CALL "&K105&" -Run" -> 0000 CALL dcsm-EF_HEPE_HV_ON_OBS_START -Run | Q105: 0.003125000003 | R105: 0.003125000003 | S105: 0.003981481481
C106: =D105 -> 2022-04-19T18:45:57 | D106: 2022-04-19T18:51:41 | G106: ENA_HV_ON_CNT | H106: =VLOOKUP(G106,List!B:C,2,0) -> 344 | K106: =VLOOKUP(G106,List!B:E,4,0) -> dcsm-EF_ENA_HV_ON_CNT | L106: =VLOOKUP(G106,List!B:G,6,0) -> 18 | M106: 2022-04-19T18:40:40 | N106: =+"0000 CALL "&K106&" -Run" -> 0000 CALL dcsm-EF_ENA_HV_ON_CNT -Run | Q106: 0.003981481481 | R106: 0.003981481481 | S106: 0.01969907407
C107: 2022-04-19T18:51:41 | D107: 2022-04-19T19:20:03 | G107: MEA1_HV_ON | H107: =VLOOKUP(G107,List!B:C,2,0) -> 1702 | K107: =VLOOKUP(G107,List!B:E,4,0) -> dcsm-EF_MEA1_HV_ON | L107: =VLOOKUP(G107,List!B:G,6,0) -> 27 | M107: 2022-04-19T18:46:24 | N107: 0000 CALL dcsm-EF_MEA1_HV_ON -Run | Q107: 0.01969907407 | R107: 0.01969907407 | S107: 0.0004861111083
C108: 2022-04-19T19:20:03 | D108: 2022-04-19T19:20:45 | F108: TLM mode change (MODE_5) | G108: TLM_MODE_5 | H108: =VLOOKUP(G108,List!B:C,2,0) -> 42 | K108: =VLOOKUP(G108,List!B:E,4,0) -> dcsm-EF_BUS_TLM_MODE_5 | L108: =VLOOKUP(G108,List!B:G,6,0) -> 2 | M108: 2022-04-19T19:14:46 | N108: 0000 CALL dcsm-EF_BUS_TLM_MODE_5 -Run | Q108: 0.0004861111083 | R108: 0.0004861111083 | S108: 1.055393519
C109: 2022-04-19T19:20:45 | D109: =C110 -> 2022-04-20T20:40:31 | E109: Observation J | H109: =(D109-C109)*3600*24 -> 91186 | I109: =H109/3600 -> 25.32944444 | L109: 0 | M109: 2022-04-19T19:15:28 | N109: ="0000 WAIT_SEC "&TEXT(H109,"#0") -> 0000 WAIT_SEC 91186 | Q109: 1.055393519 | R109: 1.055393519 | S109: 0.0004861111083
C110: =D110-H110/3600/24 -> 2022-04-20T20:40:31 | D110: =C111 -> 2022-04-20T20:41:13 | F110: TLM mode change (MODE_10) | G110: TLM_MODE_10 | H110: =VLOOKUP(G110,List!B:C,2,0) -> 42 | K110: =VLOOKUP(G110,List!B:E,4,0) -> dcsm-EF_BUS_TLM_MODE_10 | L110: =VLOOKUP(G110,List!B:G,6,0) -> 2 | M110: 2022-04-20T20:35:14 | N110: =+"0000 CALL "&K110&" -Run" -> 0000 CALL dcsm-EF_BUS_TLM_MODE_10 -Run | Q110: 0.0004861111083 | R110: 0.0004861111083 | S110: 0.002199074072
C111: =D111-H111/3600/24 -> 2022-04-20T20:41:13 | D111: =C112 -> 2022-04-20T20:44:23 | F111: SI HV OFF | G111: HEP_HV_OFF | H111: =VLOOKUP(G111,List!B:C,2,0) -> 190 | K111: =VLOOKUP(G111,List!B:E,4,0) -> dcsm-EF_HEPE_HV_OFF_OBS_OFF | L111: =VLOOKUP(G111,List!B:G,6,0) -> 5 | M111: 2022-04-20T20:35:56 | N111: 0000 CALL dcsm-EF_HEPE_HV_OFF_OBS_OFF -Run | Q111: 0.002199074072 | R111: 0.002199074072 | S111: 0.002291666664
C112: =D112-H112/3600/24 -> 2022-04-20T20:44:23 | D112: =C113 -> 2022-04-20T20:47:41 | G112: ENA_HV_OFF | H112: =VLOOKUP(G112,List!B:C,2,0) -> 198 | K112: =VLOOKUP(G112,List!B:E,4,0) -> dcsm-EF_ENA_HV_OFF | L112: =VLOOKUP(G112,List!B:G,6,0) -> 4 | M112: 2022-04-20T20:39:06 | N112: 0000 CALL dcsm-EF_ENA_HV_OFF -Run | Q112: 0.002291666664 | R112: 0.002291666664 | S112: 0.002106481479
C113: =D113-H113/3600/24 -> 2022-04-20T20:47:41 | D113: =C114 -> 2022-04-20T20:50:43 | G113: MEA1_HV_OFF | H113: =VLOOKUP(G113,List!B:C,2,0) -> 182 | K113: =VLOOKUP(G113,List!B:E,4,0) -> dcsm-EF_MEA1_HV_OFF | L113: =VLOOKUP(G113,List!B:G,6,0) -> 10 | M113: 2022-04-20T20:42:24 | N113: 0000 CALL dcsm-EF_MEA1_HV_OFF -Run | Q113: 0.002106481479 | R113: 0.002106481479 | S113: 0.01388888889
C114: 2022-04-20T20:50:43 | D114: =C114+H114/3600/24 -> 2022-04-20T21:10:43 | E114: WOL#10 | G114: =(C115-D113)*24*3600 -> 1800 | H114: 1200 | L114: 0 | M114: 2022-04-20T20:45:26 | N114: ="0000 WAIT_SEC "&TEXT(G114,"#0") -> 0000 WAIT_SEC 1800 | Q114: 0.01388888889 | R114: 0.02083333334 | S114: 0.01006944445
C115: =D114+10/60/24 -> 2022-04-20T21:20:43 | D115: =C115+H115/3600/24 -> 2022-04-20T21:25:13 | F115: SI HV ON | G115: HEP_HV_ON | H115: =VLOOKUP(G115,List!B:C,2,0) -> 270 | K115: =VLOOKUP(G115,List!B:E,4,0) -> dcsm-EF_HEPE_HV_ON_OBS_START | L115: =VLOOKUP(G115,List!B:G,6,0) -> 6 | M115: 2022-04-20T21:15:26 | N115: =+"0000 CALL "&K115&" -Run" -> 0000 CALL dcsm-EF_HEPE_HV_ON_OBS_START -Run | Q115: 0.003125000003 | R115: 0.003125000003 | S115: 0.003981481481
C116: =D115 -> 2022-04-20T21:25:13 | D116: 2022-04-20T21:30:57 | G116: ENA_HV_ON_CNT | H116: =VLOOKUP(G116,List!B:C,2,0) -> 344 | K116: =VLOOKUP(G116,List!B:E,4,0) -> dcsm-EF_ENA_HV_ON_CNT | L116: =VLOOKUP(G116,List!B:G,6,0) -> 18 | M116: 2022-04-20T21:19:56 | N116: =+"0000 CALL "&K116&" -Run" -> 0000 CALL dcsm-EF_ENA_HV_ON_CNT -Run | Q116: 0.003981481481 | R116: 0.003981481481 | S116: 0.01969907407
C117: 2022-04-20T21:30:57 | D117: 2022-04-20T21:59:19 | G117: MEA1_HV_ON | H117: =VLOOKUP(G117,List!B:C,2,0) -> 1702 | K117: =VLOOKUP(G117,List!B:E,4,0) -> dcsm-EF_MEA1_HV_ON | L117: =VLOOKUP(G117,List!B:G,6,0) -> 27 | M117: 2022-04-20T21:25:40 | N117: 0000 CALL dcsm-EF_MEA1_HV_ON -Run | Q117: 0.01969907407 | R117: 0.01969907407 | S117: 0.0004861111083
C118: 2022-04-20T21:59:19 | D118: 2022-04-20T22:00:01 | F118: TLM mode change (MODE_5) | G118: TLM_MODE_5 | H118: =VLOOKUP(G118,List!B:C,2,0) -> 42 | K118: =VLOOKUP(G118,List!B:E,4,0) -> dcsm-EF_BUS_TLM_MODE_5 | L118: =VLOOKUP(G118,List!B:G,6,0) -> 2 | M118: 2022-04-20T21:54:02 | N118: 0000 CALL dcsm-EF_BUS_TLM_MODE_5 -Run | Q118: 0.0004861111083 | R118: 0.0004861111083 | S118: 0.9882638889
C119: 2022-04-20T22:00:01 | D119: =C120 -> 2022-04-21T21:43:07 | E119: Observation K | H119: =(D119-C119)*3600*24 -> 85386 | I119: =H119/3600 -> 23.71833333 | L119: 0 | M119: 2022-04-20T21:54:44 | N119: ="0000 WAIT_SEC "&TEXT(H119,"#0") -> 0000 WAIT_SEC 85386 | Q119: 0.9882638889 | R119: 0.9882638889 | S119: 0.0004861111083
C120: =D120-H120/3600/24 -> 2022-04-21T21:43:07 | D120: =C121 -> 2022-04-21T21:43:49 | F120: TLM mode change (MODE_10) | G120: TLM_MODE_10 | H120: =VLOOKUP(G120,List!B:C,2,0) -> 42 | K120: =VLOOKUP(G120,List!B:E,4,0) -> dcsm-EF_BUS_TLM_MODE_10 | L120: =VLOOKUP(G120,List!B:G,6,0) -> 2 | M120: 2022-04-21T21:37:50 | N120: =+"0000 CALL "&K120&" -Run" -> 0000 CALL dcsm-EF_BUS_TLM_MODE_10 -Run | Q120: 0.0004861111083 | R120: 0.0004861111083 | S120: 0.002199074072
C121: =D121-H121/3600/24 -> 2022-04-21T21:43:49 | D121: =C122 -> 2022-04-21T21:46:59 | F121: SI HV OFF | G121: HEP_HV_OFF | H121: =VLOOKUP(G121,List!B:C,2,0) -> 190 | K121: =VLOOKUP(G121,List!B:E,4,0) -> dcsm-EF_HEPE_HV_OFF_OBS_OFF | L121: =VLOOKUP(G121,List!B:G,6,0) -> 5 | M121: 2022-04-21T21:38:32 | N121: 0000 CALL dcsm-EF_HEPE_HV_OFF_OBS_OFF -Run | Q121: 0.002199074072 | R121: 0.002199074072 | S121: 0.002291666664
C122: =D122-H122/3600/24 -> 2022-04-21T21:46:59 | D122: =C123 -> 2022-04-21T21:50:17 | G122: ENA_HV_OFF | H122: =VLOOKUP(G122,List!B:C,2,0) -> 198 | K122: =VLOOKUP(G122,List!B:E,4,0) -> dcsm-EF_ENA_HV_OFF | L122: =VLOOKUP(G122,List!B:G,6,0) -> 4 | M122: 2022-04-21T21:41:42 | N122: 0000 CALL dcsm-EF_ENA_HV_OFF -Run | Q122: 0.002291666664 | R122: 0.002291666664 | S122: 0.002106481479
C123: =D123-H123/3600/24 -> 2022-04-21T21:50:17 | D123: =C124 -> 2022-04-21T21:53:19 | G123: MEA1_HV_OFF | H123: =VLOOKUP(G123,List!B:C,2,0) -> 182 | K123: =VLOOKUP(G123,List!B:E,4,0) -> dcsm-EF_MEA1_HV_OFF | L123: =VLOOKUP(G123,List!B:G,6,0) -> 10 | M123: 2022-04-21T21:45:00 | N123: 0000 CALL dcsm-EF_MEA1_HV_OFF -Run | Q123: 0.002106481479 | R123: 0.002106481479 | S123: 0.01388888889
C124: 2022-04-21T21:53:19 | D124: =C124+H124/3600/24 -> 2022-04-21T22:13:19 | E124: WOL#11 | G124: =(C125-D123)*24*3600 -> 1800 | H124: 1200 | L124: 0 | M124: 2022-04-21T21:48:02 | N124: ="0000 WAIT_SEC "&TEXT(G124,"#0") -> 0000 WAIT_SEC 1800 | Q124: 0.01388888889 | R124: 0.02083333334 | S124: 0.01006944445
C125: =D124+10/60/24 -> 2022-04-21T22:23:19 | D125: =C125+H125/3600/24 -> 2022-04-21T22:27:49 | F125: SI HV ON | G125: HEP_HV_ON | H125: =VLOOKUP(G125,List!B:C,2,0) -> 270 | K125: =VLOOKUP(G125,List!B:E,4,0) -> dcsm-EF_HEPE_HV_ON_OBS_START | L125: =VLOOKUP(G125,List!B:G,6,0) -> 6 | M125: 2022-04-21T22:18:02 | N125: =+"0000 CALL "&K125&" -Run" -> 0000 CALL dcsm-EF_HEPE_HV_ON_OBS_START -Run | Q125: 0.003125000003 | R125: 0.003125000003 | S125: 0.003981481481
C126: =D125 -> 2022-04-21T22:27:49 | D126: 2022-04-21T22:33:33 | G126: ENA_HV_ON_CNT | H126: =VLOOKUP(G126,List!B:C,2,0) -> 344 | K126: =VLOOKUP(G126,List!B:E,4,0) -> dcsm-EF_ENA_HV_ON_CNT | L126: =VLOOKUP(G126,List!B:G,6,0) -> 18 | M126: 2022-04-21T22:22:32 | N126: =+"0000 CALL "&K126&" -Run" -> 0000 CALL dcsm-EF_ENA_HV_ON_CNT -Run | Q126: 0.003981481481 | R126: 0.003981481481 | S126: 0.01969907407
C127: 2022-04-21T22:33:33 | D127: 2022-04-21T23:01:55 | G127: MEA1_HV_ON | H127: =VLOOKUP(G127,List!B:C,2,0) -> 1702 | K127: =VLOOKUP(G127,List!B:E,4,0) -> dcsm-EF_MEA1_HV_ON | L127: =VLOOKUP(G127,List!B:G,6,0) -> 27 | M127: 2022-04-21T22:28:16 | N127: 0000 CALL dcsm-EF_MEA1_HV_ON -Run | Q127: 0.01969907407 | R127: 0.01969907407 | S127: 0.0004861111083
C128: 2022-04-21T23:01:55 | D128: 2022-04-21T23:02:37 | F128: TLM mode change (MODE_5) | G128: TLM_MODE_5 | H128: =VLOOKUP(G128,List!B:C,2,0) -> 42 | K128: =VLOOKUP(G128,List!B:E,4,0) -> dcsm-EF_BUS_TLM_MODE_5 | L128: =VLOOKUP(G128,List!B:G,6,0) -> 2 | M128: 2022-04-21T22:56:38 | N128: 0000 CALL dcsm-EF_BUS_TLM_MODE_5 -Run | Q128: 0.0004861111083 | R128: 0.0004861111083 | S128: 0.8548032408
C129: 2022-04-21T23:02:37 | D129: =C130 -> 2022-04-22T19:33:32 | E129: Observation L | H129: =(D129-C129)*3600*24 -> 73855 | I129: =H129/3600 -> 20.51527778 | L129: 0 | M129: 2022-04-21T22:57:20 | N129: ="0000 WAIT_SEC "&TEXT(H129,"#0") -> 0000 WAIT_SEC 73855 | Q129: 0.8548032408 | R129: 0.8548032408 | S129: 0.0004861111083
C130: =D130-H130/3600/24 -> 2022-04-22T19:33:32 | D130: =C131 -> 2022-04-22T19:34:14 | F130: TLM mode change (MODE_10) | G130: TLM_MODE_10 | H130: =VLOOKUP(G130,List!B:C,2,0) -> 42 | K130: =VLOOKUP(G130,List!B:E,4,0) -> dcsm-EF_BUS_TLM_MODE_10 | L130: =VLOOKUP(G130,List!B:G,6,0) -> 2 | M130: 2022-04-22T19:28:15 | N130: =+"0000 CALL "&K130&" -Run" -> 0000 CALL dcsm-EF_BUS_TLM_MODE_10 -Run | Q130: 0.0004861111083 | R130: 0.0004861111083 | S130: 0.002199074072
C131: =D131-H131/3600/24 -> 2022-04-22T19:34:14 | D131: =C132 -> 2022-04-22T19:37:24 | F131: SI HV OFF | G131: HEP_HV_OFF | H131: =VLOOKUP(G131,List!B:C,2,0) -> 190 | K131: =VLOOKUP(G131,List!B:E,4,0) -> dcsm-EF_HEPE_HV_OFF_OBS_OFF | L131: =VLOOKUP(G131,List!B:G,6,0) -> 5 | M131: 2022-04-22T19:28:57 | N131: 0000 CALL dcsm-EF_HEPE_HV_OFF_OBS_OFF -Run | Q131: 0.002199074072 | R131: 0.002199074072 | S131: 0.002291666664
C132: =D132-H132/3600/24 -> 2022-04-22T19:37:24 | D132: =C133 -> 2022-04-22T19:40:42 | G132: ENA_HV_OFF | H132: =VLOOKUP(G132,List!B:C,2,0) -> 198 | K132: =VLOOKUP(G132,List!B:E,4,0) -> dcsm-EF_ENA_HV_OFF | L132: =VLOOKUP(G132,List!B:G,6,0) -> 4 | M132: 2022-04-22T19:32:07 | N132: 0000 CALL dcsm-EF_ENA_HV_OFF -Run | Q132: 0.002291666664 | R132: 0.002291666664 | S132: 0.002106481479
C133: =D133-H133/3600/24 -> 2022-04-22T19:40:42 | D133: =C134 -> 2022-04-22T19:43:44 | G133: MEA1_HV_OFF | H133: =VLOOKUP(G133,List!B:C,2,0) -> 182 | K133: =VLOOKUP(G133,List!B:E,4,0) -> dcsm-EF_MEA1_HV_OFF | L133: =VLOOKUP(G133,List!B:G,6,0) -> 10 | M133: 2022-04-22T19:35:25 | N133: 0000 CALL dcsm-EF_MEA1_HV_OFF -Run | Q133: 0.002106481479 | R133: 0.002106481479 | S133: 0.01388888889
C134: 2022-04-22T19:43:44 | D134: =C134+H134/3600/24 -> 2022-04-22T20:03:44 | E134: WOL#12 | G134: =(C135-D133)*24*3600 -> 1800 | H134: 1200 | L134: 0 | M134: =C134-317/3600/24 -> 2022-04-22T19:38:27 | N134: ="0000 WAIT_SEC "&TEXT(G134,"#0") -> 0000 WAIT_SEC 1800 | Q134: 0.01388888889 | R134: 0.02083333334 | S134: 0.01006944445
C135: =D134+10/60/24 -> 2022-04-22T20:13:44 | D135: =C135+H135/3600/24 -> 2022-04-22T20:18:14 | F135: SI HV ON | G135: HEP_HV_ON | H135: =VLOOKUP(G135,List!B:C,2,0) -> 270 | K135: =VLOOKUP(G135,List!B:E,4,0) -> dcsm-EF_HEPE_HV_ON_OBS_START | L135: =VLOOKUP(G135,List!B:G,6,0) -> 6 | M135: 2022-04-22T20:08:27 | N135: =+"0000 CALL "&K135&" -Run" -> 0000 CALL dcsm-EF_HEPE_HV_ON_OBS_START -Run | Q135: =+D135-C135 -> 0.003125000003 | R135: =+C136-C135 -> 0.003125000003 | S135: 0.003981481481
C136: =D135 -> 2022-04-22T20:18:14 | D136: 2022-04-22T20:23:58 | G136: ENA_HV_ON_CNT | H136: =VLOOKUP(G136,List!B:C,2,0) -> 344 | K136: =VLOOKUP(G136,List!B:E,4,0) -> dcsm-EF_ENA_HV_ON_CNT | L136: =VLOOKUP(G136,List!B:G,6,0) -> 18 | M136: 2022-04-22T20:12:57 | N136: =+"0000 CALL "&K136&" -Run" -> 0000 CALL dcsm-EF_ENA_HV_ON_CNT -Run | Q136: 0.003981481481 | R136: 0.003981481481 | S136: 0.01969907407
C137: 2022-04-22T20:23:58 | D137: 2022-04-22T20:52:20 | G137: MEA1_HV_ON | H137: =VLOOKUP(G137,List!B:C,2,0) -> 1702 | K137: =VLOOKUP(G137,List!B:E,4,0) -> dcsm-EF_MEA1_HV_ON | L137: =VLOOKUP(G137,List!B:G,6,0) -> 27 | M137: 2022-04-22T20:18:41 | N137: 0000 CALL dcsm-EF_MEA1_HV_ON -Run | Q137: 0.01969907407 | R137: 0.01969907407 | S137: 0.0004861111083
C138: 2022-04-22T20:52:20 | D138: 2022-04-22T20:53:02 | F138: TLM mode change (MODE_5) | G138: TLM_MODE_5 | H138: =VLOOKUP(G138,List!B:C,2,0) -> 42 | K138: =VLOOKUP(G138,List!B:E,4,0) -> dcsm-EF_BUS_TLM_MODE_5 | L138: =VLOOKUP(G138,List!B:G,6,0) -> 2 | M138: 2022-04-22T20:47:03 | N138: 0000 CALL dcsm-EF_BUS_TLM_MODE_5 -Run | Q138: 0.0004861111083 | R138: 0.0004861111083 | S138: 0.8777430556
C139: 2022-04-22T20:53:02 | D139: =C140 -> 2022-04-23T17:56:59 | E139: Observation M | H139: =(D139-C139)*3600*24 -> 75837 | I139: =H139/3600 -> 21.06583333 | L139: 0 | M139: 2022-04-22T20:47:45 | N139: ="0000 WAIT_SEC "&TEXT(H139,"#0") -> 0000 WAIT_SEC 75837 | Q139: 0.8777430556 | R139: 0.8777430556 | S139: 0.0004861111083
C140: =D140-H140/3600/24 -> 2022-04-23T17:56:59 | D140: =C141 -> 2022-04-23T17:57:41 | F140: TLM mode change (MODE_10) | G140: TLM_MODE_10 | H140: =VLOOKUP(G140,List!B:C,2,0) -> 42 | K140: =VLOOKUP(G140,List!B:E,4,0) -> dcsm-EF_BUS_TLM_MODE_10 | L140: =VLOOKUP(G140,List!B:G,6,0) -> 2 | M140: 2022-04-23T17:51:42 | N140: =+"0000 CALL "&K140&" -Run" -> 0000 CALL dcsm-EF_BUS_TLM_MODE_10 -Run | Q140: 0.0004861111083 | R140: 0.0004861111083 | S140: 0.002199074072
C141: =D141-H141/3600/24 -> 2022-04-23T17:57:41 | D141: =C142 -> 2022-04-23T18:00:51 | F141: SI HV OFF | G141: HEP_HV_OFF | H141: =VLOOKUP(G141,List!B:C,2,0) -> 190 | K141: =VLOOKUP(G141,List!B:E,4,0) -> dcsm-EF_HEPE_HV_OFF_OBS_OFF | L141: =VLOOKUP(G141,List!B:G,6,0) -> 5 | M141: 2022-04-23T17:52:24 | N141: 0000 CALL dcsm-EF_HEPE_HV_OFF_OBS_OFF -Run | Q141: 0.002199074072 | R141: 0.002199074072 | S141: 0.002291666664
C142: =D142-H142/3600/24 -> 2022-04-23T18:00:51 | D142: =C143 -> 2022-04-23T18:04:09 | G142: ENA_HV_OFF | H142: =VLOOKUP(G142,List!B:C,2,0) -> 198 | K142: =VLOOKUP(G142,List!B:E,4,0) -> dcsm-EF_ENA_HV_OFF | L142: =VLOOKUP(G142,List!B:G,6,0) -> 4 | M142: 2022-04-23T17:55:34 | N142: 0000 CALL dcsm-EF_ENA_HV_OFF -Run | Q142: 0.002291666664 | R142: 0.002291666664 | S142: 0.002106481479
C143: =D143-H143/3600/24 -> 2022-04-23T18:04:09 | D143: =C144 -> 2022-04-23T18:07:11 | G143: MEA1_HV_OFF | H143: =VLOOKUP(G143,List!B:C,2,0) -> 182 | K143: =VLOOKUP(G143,List!B:E,4,0) -> dcsm-EF_MEA1_HV_OFF | L143: =VLOOKUP(G143,List!B:G,6,0) -> 10 | M143: 2022-04-23T17:58:52 | N143: 0000 CALL dcsm-EF_MEA1_HV_OFF -Run | Q143: 0.002106481479 | R143: 0.002106481479 | S143: 0.01388888889
C144: 2022-04-23T18:07:11 | D144: =C144+H144/3600/24 -> 2022-04-23T18:27:11 | E144: WOL#13 | G144: =(C145-D143)*24*3600 -> 1800 | H144: 1200 | L144: 0 | M144: 2022-04-23T18:01:54 | N144: ="0000 WAIT_SEC "&TEXT(G144,"#0") -> 0000 WAIT_SEC 1800 | Q144: 0.01388888889 | R144: 0.02083333334 | S144: 0.01006944445
C145: =D144+10/60/24 -> 2022-04-23T18:37:11 | D145: =C145+H145/3600/24 -> 2022-04-23T18:41:41 | F145: SI HV ON | G145: HEP_HV_ON | H145: =VLOOKUP(G145,List!B:C,2,0) -> 270 | K145: =VLOOKUP(G145,List!B:E,4,0) -> dcsm-EF_HEPE_HV_ON_OBS_START | L145: =VLOOKUP(G145,List!B:G,6,0) -> 6 | M145: 2022-04-23T18:31:54 | N145: =+"0000 CALL "&K145&" -Run" -> 0000 CALL dcsm-EF_HEPE_HV_ON_OBS_START -Run | Q145: 0.003125000003 | R145: 0.003125000003 | S145: 0.003981481481
C146: =D145 -> 2022-04-23T18:41:41 | D146: 2022-04-23T18:47:25 | G146: ENA_HV_ON_CNT | H146: =VLOOKUP(G146,List!B:C,2,0) -> 344 | K146: =VLOOKUP(G146,List!B:E,4,0) -> dcsm-EF_ENA_HV_ON_CNT | L146: =VLOOKUP(G146,List!B:G,6,0) -> 18 | M146: 2022-04-23T18:36:24 | N146: =+"0000 CALL "&K146&" -Run" -> 0000 CALL dcsm-EF_ENA_HV_ON_CNT -Run | Q146: 0.003981481481 | R146: 0.003981481481 | S146: 0.01969907407
C147: 2022-04-23T18:47:25 | D147: 2022-04-23T19:15:47 | G147: MEA1_HV_ON | H147: =VLOOKUP(G147,List!B:C,2,0) -> 1702 | K147: =VLOOKUP(G147,List!B:E,4,0) -> dcsm-EF_MEA1_HV_ON | L147: =VLOOKUP(G147,List!B:G,6,0) -> 27 | M147: 2022-04-23T18:42:08 | N147: 0000 CALL dcsm-EF_MEA1_HV_ON -Run | Q147: 0.01969907407 | R147: 0.01969907407 | S147: 0.0004861111083
C148: 2022-04-23T19:15:47 | D148: 2022-04-23T19:16:29 | F148: TLM mode change (MODE_5) | G148: TLM_MODE_5 | H148: =VLOOKUP(G148,List!B:C,2,0) -> 42 | K148: =VLOOKUP(G148,List!B:E,4,0) -> dcsm-EF_BUS_TLM_MODE_5 | L148: =VLOOKUP(G148,List!B:G,6,0) -> 2 | M148: 2022-04-23T19:10:30 | N148: 0000 CALL dcsm-EF_BUS_TLM_MODE_5 -Run | Q148: 0.0004861111083 | R148: 0.0004861111083 | S148: 0.9159953704
C149: 2022-04-23T19:16:29 | D149: =C150 -> 2022-04-24T17:15:31 | E149: Observation N | H149: =(D149-C149)*3600*24 -> 79142 | I149: =H149/3600 -> 21.98388889 | L149: 0 | M149: 2022-04-23T19:11:12 | N149: ="0000 WAIT_SEC "&TEXT(H149,"#0") -> 0000 WAIT_SEC 79142 | Q149: 0.9159953704 | R149: 0.9159953704 | S149: 0.0004861111083
C150: =D150-H150/3600/24 -> 2022-04-24T17:15:31 | D150: =C151 -> 2022-04-24T17:16:13 | F150: TLM mode change (MODE_10) | G150: TLM_MODE_10 | H150: =VLOOKUP(G150,List!B:C,2,0) -> 42 | K150: =VLOOKUP(G150,List!B:E,4,0) -> dcsm-EF_BUS_TLM_MODE_10 | L150: =VLOOKUP(G150,List!B:G,6,0) -> 2 | M150: 2022-04-24T17:10:14 | N150: =+"0000 CALL "&K150&" -Run" -> 0000 CALL dcsm-EF_BUS_TLM_MODE_10 -Run | Q150: 0.0004861111083 | R150: 0.0004861111083 | S150: 0.002199074072
C151: =D151-H151/3600/24 -> 2022-04-24T17:16:13 | D151: =C152 -> 2022-04-24T17:19:23 | F151: SI HV OFF | G151: HEP_HV_OFF | H151: =VLOOKUP(G151,List!B:C,2,0) -> 190 | K151: =VLOOKUP(G151,List!B:E,4,0) -> dcsm-EF_HEPE_HV_OFF_OBS_OFF | L151: =VLOOKUP(G151,List!B:G,6,0) -> 5 | M151: 2022-04-24T17:10:56 | N151: 0000 CALL dcsm-EF_HEPE_HV_OFF_OBS_OFF -Run | Q151: 0.002199074072 | R151: 0.002199074072 | S151: 0.002291666664
C152: =D152-H152/3600/24 -> 2022-04-24T17:19:23 | D152: =C153 -> 2022-04-24T17:22:41 | G152: ENA_HV_OFF | H152: =VLOOKUP(G152,List!B:C,2,0) -> 198 | K152: =VLOOKUP(G152,List!B:E,4,0) -> dcsm-EF_ENA_HV_OFF | L152: =VLOOKUP(G152,List!B:G,6,0) -> 4 | M152: 2022-04-24T17:14:06 | N152: 0000 CALL dcsm-EF_ENA_HV_OFF -Run | Q152: 0.002291666664 | R152: 0.002291666664 | S152: 0.002106481479
C153: =D153-H153/3600/24 -> 2022-04-24T17:22:41 | D153: =C154 -> 2022-04-24T17:25:43 | G153: MEA1_HV_OFF | H153: =VLOOKUP(G153,List!B:C,2,0) -> 182 | K153: =VLOOKUP(G153,List!B:E,4,0) -> dcsm-EF_MEA1_HV_OFF | L153: =VLOOKUP(G153,List!B:G,6,0) -> 10 | M153: 2022-04-24T17:17:24 | N153: 0000 CALL dcsm-EF_MEA1_HV_OFF -Run | Q153: 0.002106481479 | R153: 0.002106481479 | S153: 0.01388888889
C154: 2022-04-24T17:25:43 | D154: =C154+H154/3600/24 -> 2022-04-24T17:45:43 | E154: WOL#14 | G154: =(C155-D153)*24*3600 -> 1800 | H154: 1200 | L154: 0 | M154: 2022-04-24T17:20:26 | N154: ="0000 WAIT_SEC "&TEXT(G154,"#0") -> 0000 WAIT_SEC 1800 | Q154: 0.01388888889 | R154: 0.02083333334 | S154: 0.01006944445
C155: =D154+10/60/24 -> 2022-04-24T17:55:43 | D155: =C155+H155/3600/24 -> 2022-04-24T18:00:13 | F155: SI HV ON | G155: HEP_HV_ON | H155: =VLOOKUP(G155,List!B:C,2,0) -> 270 | K155: =VLOOKUP(G155,List!B:E,4,0) -> dcsm-EF_HEPE_HV_ON_OBS_START | L155: =VLOOKUP(G155,List!B:G,6,0) -> 6 | M155: 2022-04-24T17:50:26 | N155: =+"0000 CALL "&K155&" -Run" -> 0000 CALL dcsm-EF_HEPE_HV_ON_OBS_START -Run | Q155: 0.003125000003 | R155: 0.003125000003 | S155: 0.003981481481
C156: =D155 -> 2022-04-24T18:00:13 | D156: 2022-04-24T18:05:57 | G156: ENA_HV_ON_CNT | H156: =VLOOKUP(G156,List!B:C,2,0) -> 344 | K156: =VLOOKUP(G156,List!B:E,4,0) -> dcsm-EF_ENA_HV_ON_CNT | L156: =VLOOKUP(G156,List!B:G,6,0) -> 18 | M156: 2022-04-24T17:54:56 | N156: =+"0000 CALL "&K156&" -Run" -> 0000 CALL dcsm-EF_ENA_HV_ON_CNT -Run | Q156: 0.003981481481 | R156: 0.003981481481 | S156: 0.01969907407
C157: 2022-04-24T18:05:57 | D157: 2022-04-24T18:34:19 | G157: MEA1_HV_ON | H157: =VLOOKUP(G157,List!B:C,2,0) -> 1702 | K157: =VLOOKUP(G157,List!B:E,4,0) -> dcsm-EF_MEA1_HV_ON | L157: =VLOOKUP(G157,List!B:G,6,0) -> 27 | M157: 2022-04-24T18:00:40 | N157: 0000 CALL dcsm-EF_MEA1_HV_ON -Run | Q157: 0.01969907407 | R157: 0.01969907407 | S157: 0.0004861111083
C158: 2022-04-24T18:34:19 | D158: 2022-04-24T18:35:01 | F158: TLM mode change (MODE_5) | G158: TLM_MODE_5 | H158: =VLOOKUP(G158,List!B:C,2,0) -> 42 | K158: =VLOOKUP(G158,List!B:E,4,0) -> dcsm-EF_BUS_TLM_MODE_5 | L158: =VLOOKUP(G158,List!B:G,6,0) -> 2 | M158: 2022-04-24T18:29:02 | N158: 0000 CALL dcsm-EF_BUS_TLM_MODE_5 -Run | Q158: 0.0004861111083 | R158: 0.0004861111083 | S158: 0.9829166667
C159: 2022-04-24T18:35:01 | D159: =C160 -> 2022-04-25T18:10:25 | E159: Observation O | H159: =(D159-C159)*3600*24 -> 84924 | I159: =H159/3600 -> 23.59 | L159: 0 | M159: 2022-04-24T18:29:44 | N159: ="0000 WAIT_SEC "&TEXT(H159,"#0") -> 0000 WAIT_SEC 84924 | Q159: 0.9829166667 | R159: 0.9829166667 | S159: 0.0004861111083
C160: =D160-H160/3600/24 -> 2022-04-25T18:10:25 | D160: =C161 -> 2022-04-25T18:11:07 | F160: TLM mode change (MODE_10) | G160: TLM_MODE_10 | H160: =VLOOKUP(G160,List!B:C,2,0) -> 42 | K160: =VLOOKUP(G160,List!B:E,4,0) -> dcsm-EF_BUS_TLM_MODE_10 | L160: =VLOOKUP(G160,List!B:G,6,0) -> 2 | M160: 2022-04-25T18:05:08 | N160: =+"0000 CALL "&K160&" -Run" -> 0000 CALL dcsm-EF_BUS_TLM_MODE_10 -Run | Q160: 0.0004861111083 | R160: 0.0004861111083 | S160: 0.002199074072
C161: =D161-H161/3600/24 -> 2022-04-25T18:11:07 | D161: =C162 -> 2022-04-25T18:14:17 | F161: SI HV OFF | G161: HEP_HV_OFF | H161: =VLOOKUP(G161,List!B:C,2,0) -> 190 | K161: =VLOOKUP(G161,List!B:E,4,0) -> dcsm-EF_HEPE_HV_OFF_OBS_OFF | L161: =VLOOKUP(G161,List!B:G,6,0) -> 5 | M161: 2022-04-25T18:05:50 | N161: 0000 CALL dcsm-EF_HEPE_HV_OFF_OBS_OFF -Run | Q161: 0.002199074072 | R161: 0.002199074072 | S161: 0.002291666664
C162: =D162-H162/3600/24 -> 2022-04-25T18:14:17 | D162: =C163 -> 2022-04-25T18:17:35 | G162: ENA_HV_OFF | H162: =VLOOKUP(G162,List!B:C,2,0) -> 198 | K162: =VLOOKUP(G162,List!B:E,4,0) -> dcsm-EF_ENA_HV_OFF | L162: =VLOOKUP(G162,List!B:G,6,0) -> 4 | M162: 2022-04-25T18:09:00 | N162: 0000 CALL dcsm-EF_ENA_HV_OFF -Run | Q162: 0.002291666664 | R162: 0.002291666664 | S162: 0.002106481479
C163: =D163-H163/3600/24 -> 2022-04-25T18:17:35 | D163: =C164 -> 2022-04-25T18:20:37 | G163: MEA1_HV_OFF | H163: =VLOOKUP(G163,List!B:C,2,0) -> 182 | K163: =VLOOKUP(G163,List!B:E,4,0) -> dcsm-EF_MEA1_HV_OFF | L163: =VLOOKUP(G163,List!B:G,6,0) -> 10 | M163: 2022-04-25T18:12:18 | N163: 0000 CALL dcsm-EF_MEA1_HV_OFF -Run | Q163: 0.002106481479 | R163: 0.002106481479 | S163: 0.01388888889
C164: 2022-04-25T18:20:37 | D164: =C164+H164/3600/24 -> 2022-04-25T18:40:37 | E164: WOL#15 | G164: =(C165-D163)*24*3600 -> 1800 | H164: 1200 | L164: 0 | M164: 2022-04-25T18:15:20 | N164: ="0000 WAIT_SEC "&TEXT(G164,"#0") -> 0000 WAIT_SEC 1800 | Q164: 0.01388888889 | R164: 0.02083333334 | S164: 0.01006944445
C165: =D164+10/60/24 -> 2022-04-25T18:50:37 | D165: =C165+H165/3600/24 -> 2022-04-25T18:55:07 | F165: SI HV ON | G165: HEP_HV_ON | H165: =VLOOKUP(G165,List!B:C,2,0) -> 270 | K165: =VLOOKUP(G165,List!B:E,4,0) -> dcsm-EF_HEPE_HV_ON_OBS_START | L165: =VLOOKUP(G165,List!B:G,6,0) -> 6 | M165: 2022-04-25T18:45:20 | N165: =+"0000 CALL "&K165&" -Run" -> 0000 CALL dcsm-EF_HEPE_HV_ON_OBS_START -Run | Q165: 0.003125000003 | R165: 0.003125000003 | S165: 0.003981481481
C166: =D165 -> 2022-04-25T18:55:07 | D166: 2022-04-25T19:00:51 | G166: ENA_HV_ON_CNT | H166: =VLOOKUP(G166,List!B:C,2,0) -> 344 | K166: =VLOOKUP(G166,List!B:E,4,0) -> dcsm-EF_ENA_HV_ON_CNT | L166: =VLOOKUP(G166,List!B:G,6,0) -> 18 | M166: 2022-04-25T18:49:50 | N166: =+"0000 CALL "&K166&" -Run" -> 0000 CALL dcsm-EF_ENA_HV_ON_CNT -Run | Q166: 0.003981481481 | R166: 0.003981481481 | S166: 0.01969907407
C167: 2022-04-25T19:00:51 | D167: 2022-04-25T19:29:13 | G167: MEA1_HV_ON | H167: =VLOOKUP(G167,List!B:C,2,0) -> 1702 | K167: =VLOOKUP(G167,List!B:E,4,0) -> dcsm-EF_MEA1_HV_ON | L167: =VLOOKUP(G167,List!B:G,6,0) -> 27 | M167: 2022-04-25T18:55:34 | N167: 0000 CALL dcsm-EF_MEA1_HV_ON -Run | Q167: 0.01969907407 | R167: 0.01969907407 | S167: 0.0004861111083
C168: 2022-04-25T19:29:13 | D168: 2022-04-25T19:29:55 | F168: TLM mode change (MODE_5) | G168: TLM_MODE_5 | H168: =VLOOKUP(G168,List!B:C,2,0) -> 42 | K168: =VLOOKUP(G168,List!B:E,4,0) -> dcsm-EF_BUS_TLM_MODE_5 | L168: =VLOOKUP(G168,List!B:G,6,0) -> 2 | M168: 2022-04-25T19:23:56 | N168: 0000 CALL dcsm-EF_BUS_TLM_MODE_5 -Run | Q168: 0.0004861111083 | R168: 0.0004861111083 | S168: 1.039768519
C169: 2022-04-25T19:29:55 | D169: =C170 -> 2022-04-26T20:27:11 | E169: Observation P | H169: =(D169-C169)*3600*24 -> 89836 | I169: =H169/3600 -> 24.95444444 | L169: 0 | M169: 2022-04-25T19:24:38 | N169: ="0000 WAIT_SEC "&TEXT(H169,"#0") -> 0000 WAIT_SEC 89836 | Q169: 1.039768519 | R169: 1.039768519 | S169: 0.0004861111083
C170: =D170-H170/3600/24 -> 2022-04-26T20:27:11 | D170: =C171 -> 2022-04-26T20:27:53 | F170: TLM mode change (MODE_10) | G170: TLM_MODE_10 | H170: =VLOOKUP(G170,List!B:C,2,0) -> 42 | K170: =VLOOKUP(G170,List!B:E,4,0) -> dcsm-EF_BUS_TLM_MODE_10 | L170: =VLOOKUP(G170,List!B:G,6,0) -> 2 | M170: 2022-04-26T20:21:54 | N170: =+"0000 CALL "&K170&" -Run" -> 0000 CALL dcsm-EF_BUS_TLM_MODE_10 -Run | Q170: 0.0004861111083 | R170: 0.0004861111083 | S170: 0.002199074072
C171: =D171-H171/3600/24 -> 2022-04-26T20:27:53 | D171: =C172 -> 2022-04-26T20:31:03 | F171: SI HV OFF | G171: HEP_HV_OFF | H171: =VLOOKUP(G171,List!B:C,2,0) -> 190 | K171: =VLOOKUP(G171,List!B:E,4,0) -> dcsm-EF_HEPE_HV_OFF_OBS_OFF | L171: =VLOOKUP(G171,List!B:G,6,0) -> 5 | M171: 2022-04-26T20:22:36 | N171: 0000 CALL dcsm-EF_HEPE_HV_OFF_OBS_OFF -Run | Q171: 0.002199074072 | R171: 0.002199074072 | S171: 0.002291666664
C172: =D172-H172/3600/24 -> 2022-04-26T20:31:03 | D172: =C173 -> 2022-04-26T20:34:21 | G172: ENA_HV_OFF | H172: =VLOOKUP(G172,List!B:C,2,0) -> 198 | K172: =VLOOKUP(G172,List!B:E,4,0) -> dcsm-EF_ENA_HV_OFF | L172: =VLOOKUP(G172,List!B:G,6,0) -> 4 | M172: 2022-04-26T20:25:46 | N172: 0000 CALL dcsm-EF_ENA_HV_OFF -Run | Q172: 0.002291666664 | R172: 0.002291666664 | S172: 0.002106481479
C173: =D173-H173/3600/24 -> 2022-04-26T20:34:21 | D173: =C174 -> 2022-04-26T20:37:23 | G173: MEA1_HV_OFF | H173: =VLOOKUP(G173,List!B:C,2,0) -> 182 | K173: =VLOOKUP(G173,List!B:E,4,0) -> dcsm-EF_MEA1_HV_OFF | L173: =VLOOKUP(G173,List!B:G,6,0) -> 10 | M173: 2022-04-26T20:29:04 | N173: 0000 CALL dcsm-EF_MEA1_HV_OFF -Run | Q173: 0.002106481479 | R173: 0.002106481479 | S173: 0.01388888889
C174: 2022-04-26T20:37:23 | D174: =C174+H174/3600/24 -> 2022-04-26T20:57:23 | E174: WOL#16 | G174: =(C175-D173)*24*3600 -> 1800 | H174: 1200 | L174: 0 | M174: 2022-04-26T20:32:06 | N174: ="0000 WAIT_SEC "&TEXT(G174,"#0") -> 0000 WAIT_SEC 1800 | Q174: 0.01388888889 | R174: 0.02083333334 | S174: 0.01006944445
C175: =D174+10/60/24 -> 2022-04-26T21:07:23 | D175: =C175+H175/3600/24 -> 2022-04-26T21:11:53 | F175: SI HV ON | G175: HEP_HV_ON | H175: =VLOOKUP(G175,List!B:C,2,0) -> 270 | K175: =VLOOKUP(G175,List!B:E,4,0) -> dcsm-EF_HEPE_HV_ON_OBS_START | L175: =VLOOKUP(G175,List!B:G,6,0) -> 6 | M175: 2022-04-26T21:02:06 | N175: =+"0000 CALL "&K175&" -Run" -> 0000 CALL dcsm-EF_HEPE_HV_ON_OBS_START -Run | Q175: 0.003125000003 | R175: 0.003125000003 | S175: 0.003981481481
C176: =D175 -> 2022-04-26T21:11:53 | D176: 2022-04-26T21:17:37 | G176: ENA_HV_ON_CNT | H176: =VLOOKUP(G176,List!B:C,2,0) -> 344 | K176: =VLOOKUP(G176,List!B:E,4,0) -> dcsm-EF_ENA_HV_ON_CNT | L176: =VLOOKUP(G176,List!B:G,6,0) -> 18 | M176: 2022-04-26T21:06:36 | N176: =+"0000 CALL "&K176&" -Run" -> 0000 CALL dcsm-EF_ENA_HV_ON_CNT -Run | Q176: 0.003981481481 | R176: 0.003981481481 | S176: 0.01969907407
C177: 2022-04-26T21:17:37 | D177: 2022-04-26T21:45:59 | G177: MEA1_HV_ON | H177: =VLOOKUP(G177,List!B:C,2,0) -> 1702 | K177: =VLOOKUP(G177,List!B:E,4,0) -> dcsm-EF_MEA1_HV_ON | L177: =VLOOKUP(G177,List!B:G,6,0) -> 27 | M177: 2022-04-26T21:12:20 | N177: 0000 CALL dcsm-EF_MEA1_HV_ON -Run | Q177: 0.01969907407 | R177: 0.01969907407 | S177: 0.0004861111083
C178: 2022-04-26T21:45:59 | D178: 2022-04-26T21:46:41 | F178: TLM mode change (MODE_5) | G178: TLM_MODE_5 | H178: =VLOOKUP(G178,List!B:C,2,0) -> 42 | K178: =VLOOKUP(G178,List!B:E,4,0) -> dcsm-EF_BUS_TLM_MODE_5 | L178: =VLOOKUP(G178,List!B:G,6,0) -> 2 | M178: 2022-04-26T21:40:42 | N178: 0000 CALL dcsm-EF_BUS_TLM_MODE_5 -Run | Q178: 0.0004861111083 | R178: 0.0004861111083 | S178: 1.024270833
C179: 2022-04-26T21:46:41 | D179: =C180 -> 2022-04-27T22:21:38 | E179: Observation Q | H179: =(D179-C179)*3600*24 -> 88497 | I179: =H179/3600 -> 24.5825 | L179: 0 | M179: 2022-04-26T21:41:24 | N179: ="0000 WAIT_SEC "&TEXT(H179,"#0") -> 0000 WAIT_SEC 88497 | Q179: 1.024270833 | R179: 1.024270833 | S179: 0.0004861111083
C180: =D180-H180/3600/24 -> 2022-04-27T22:21:38 | D180: =C181 -> 2022-04-27T22:22:20 | F180: TLM mode change (MODE_10) | G180: TLM_MODE_10 | H180: =VLOOKUP(G180,List!B:C,2,0) -> 42 | K180: =VLOOKUP(G180,List!B:E,4,0) -> dcsm-EF_BUS_TLM_MODE_10 | L180: =VLOOKUP(G180,List!B:G,6,0) -> 2 | M180: 2022-04-27T22:16:21 | N180: =+"0000 CALL "&K180&" -Run" -> 0000 CALL dcsm-EF_BUS_TLM_MODE_10 -Run | Q180: 0.0004861111083 | R180: 0.0004861111083 | S180: 0.002199074072
C181: =D181-H181/3600/24 -> 2022-04-27T22:22:20 | D181: =C182 -> 2022-04-27T22:25:30 | F181: SI HV OFF | G181: HEP_HV_OFF | H181: =VLOOKUP(G181,List!B:C,2,0) -> 190 | K181: =VLOOKUP(G181,List!B:E,4,0) -> dcsm-EF_HEPE_HV_OFF_OBS_OFF | L181: =VLOOKUP(G181,List!B:G,6,0) -> 5 | M181: 2022-04-27T22:17:03 | N181: 0000 CALL dcsm-EF_HEPE_HV_OFF_OBS_OFF -Run | Q181: 0.002199074072 | R181: 0.002199074072 | S181: 0.002291666664
C182: =D182-H182/3600/24 -> 2022-04-27T22:25:30 | D182: =C183 -> 2022-04-27T22:28:48 | G182: ENA_HV_OFF | H182: =VLOOKUP(G182,List!B:C,2,0) -> 198 | K182: =VLOOKUP(G182,List!B:E,4,0) -> dcsm-EF_ENA_HV_OFF | L182: =VLOOKUP(G182,List!B:G,6,0) -> 4 | M182: 2022-04-27T22:20:13 | N182: 0000 CALL dcsm-EF_ENA_HV_OFF -Run | Q182: 0.002291666664 | R182: 0.002291666664 | S182: 0.002152777779
C183: =D183-H183/3600/24 -> 2022-04-27T22:28:48 | D183: =C184 -> 2022-04-27T22:31:54 | G183: MEA1_HV_SCAN_OFF | H183: =VLOOKUP(G183,List!B:C,2,0) -> 186 | K183: =VLOOKUP(G183,List!B:E,4,0) -> dcsm-EF_MEA1_HV_SCAN_OFF | L183: =VLOOKUP(G183,List!B:G,6,0) -> 12 | M183: 2022-04-27T22:23:31 | N183: 0000 CALL dcsm-EF_MEA1_HV_SCAN_OFF -Run | Q183: 0.002152777779 | R183: 0.002152777779 | S183: 0.0008101851854
C184: =D184-H184/3600/24 -> 2022-04-27T22:31:54 | D184: =C185 -> 2022-04-27T22:33:04 | F184: SI OFF | G184: HEP_OFF | H184: =VLOOKUP(G184,List!B:C,2,0) -> 70 | K184: =VLOOKUP(G184,List!B:E,4,0) -> dcsm-EF_HEPE_OFF_STOP | L184: =VLOOKUP(G184,List!B:G,6,0) -> 4 | M184: 2022-04-27T22:26:37 | N184: =+"0000 CALL "&K184&" -Run" -> 0000 CALL dcsm-EF_HEPE_OFF_STOP -Run | Q184: 0.0008101851854 | R184: 0.0008101851854 | S184: 0.001851851855
C185: 2022-04-27T22:33:04 | D185: 2022-04-27T22:35:44 | G185: MEA1_OFF | H185: =VLOOKUP(G185,List!B:C,2,0) -> 160 | K185: =VLOOKUP(G185,List!B:E,4,0) -> dcsm-EF_MEA1_OFF | L185: =VLOOKUP(G185,List!B:G,6,0) -> 4 | M185: 2022-04-27T22:27:47 | N185: =+"0000 CALL "&K185&" -Run" -> 0000 CALL dcsm-EF_MEA1_OFF -Run | Q185: 0.001851851855 | R185: 0.001851851855 | S185: 9.259259241e-05
C186: 2022-04-27T22:35:44 | D186: 2022-04-27T22:35:52 | G186: MGF_OFF | H186: =VLOOKUP(G186,List!B:C,2,0) -> 8 | K186: =VLOOKUP(G186,List!B:E,4,0) -> dcsm-EF_MGF_OFF | L186: =VLOOKUP(G186,List!B:G,6,0) -> 1 | M186: 2022-04-27T22:30:27 | N186: 0000 CALL dcsm-EF_MGF_OFF -Run | Q186: 9.259259241e-05 | R186: 9.259259241e-05 | S186: 0.000462962962
C187: 2022-04-27T22:35:52 | D187: 2022-04-27T22:36:32 | G187: PME_OFF | H187: =VLOOKUP(G187,List!B:C,2,0) -> 40 | K187: =VLOOKUP(G187,List!B:E,4,0) -> dcsm-EF_PME_OFF | L187: =VLOOKUP(G187,List!B:G,6,0) -> 1 | M187: 2022-04-27T22:30:35 | N187: 0000 CALL dcsm-EF_PME_OFF -Run | Q187: 0.000462962962 | R187: 0.000462962962 | S187: 0.001018518517
C188: 2022-04-27T22:36:32 | D188: 2022-04-27T22:38:00 | G188: ENA_OFF | H188: =VLOOKUP(G188,List!B:C,2,0) -> 88 | K188: =VLOOKUP(G188,List!B:E,4,0) -> dcsm-EF_ENA_power_OFF | L188: =VLOOKUP(G188,List!B:G,6,0) -> 4 | M188: 2022-04-27T22:31:15 | N188: 0000 CALL dcsm-EF_ENA_power_OFF -Run | Q188: 0.001018518517 | R188: 0.001018518517 | S188: 0.001388888886
C189: 2022-04-27T22:38:00 | D189: 2022-04-27T22:40:00 | F189: MDP OFF | G189: MDP_OFF_D | H189: =VLOOKUP(G189,List!B:C,2,0) -> 120 | K189: =VLOOKUP(G189,List!B:E,4,0) -> dcsm-EF_MDP_POWEROFF | L189: =VLOOKUP(G189,List!B:G,6,0) -> 3 | M189: 2022-04-27T22:32:43 | N189: 0000 CALL dcsm-EF_MDP_POWEROFF -Run | Q189: 0.001388888886 | R189: =+C191-C189 -> 0.05694444444 | S189: =+D191-D189 -> 0.06144675926
C190: =D189 -> 2022-04-27T22:40:00 | D190: =C191 -> 2022-04-28 | E190: WOL WAIT TIM | G190: =(C191-D189)*24*3600 -> 4800 | H190: 1200 | L190: 0 | M190: =C190-317/3600/24 -> 2022-04-27T22:34:43 | N190: ="0000 WAIT_SEC "&TEXT(G190,"#0") -> 0000 WAIT_SEC 4800 | Q190: =+D190-C190 -> 0.05555555555 | R190: =+C191-C190 -> 0.05555555555 | S190: =+D191-D190 -> 0.005891203706
C191: 2022-04-28 | D191: =C191+H191/3600/24 -> 2022-04-28T00:08:29 | F191: MDP ON | G191: MDP_ON_D | H191: =VLOOKUP(G191,List!B:C,2,0) -> 509 | K191: =VLOOKUP(G191,List!B:E,4,0) -> dcsm-EF_MDP_ON | L191: =VLOOKUP(G191,List!B:G,6,0) -> 11 | M191: 2022-04-27T23:54:43 | N191: 0000 CALL dcsm-EF_MDP_ON -Run | Q191: =+D191-C191 -> 0.005891203706 | R191: =+C192-C191 -> 0.005891203706 | S191: =+D192-D191 -> 0.0004861111083
C192: =D191 -> 2022-04-28T00:08:29 | D192: =C192+H192/3600/24 -> 2022-04-28T00:09:11 | G192: MDP_CRUISE_SET | H192: =VLOOKUP(G192,List!B:C,2,0) -> 42 | K192: =VLOOKUP(G192,List!B:E,4,0) -> dcsm-EF_MDP_CRUISE_SET | L192: =VLOOKUP(G192,List!B:G,6,0) -> 2 | M192: 2022-04-28T00:03:12 | N192: 0000 CALL dcsm-EF_MDP_CRUISE_SET -Run | Q192: =+D192-C192 -> 0.0004861111083 | R192: =+C193-C192 -> 0.0004861111083 | S192: 0.0004861111083
C193: =D192 -> 2022-04-28T00:09:11 | D193: =C193+H193/3600/24 -> 2022-04-28T00:09:53 | F193: TLM mode change (MODE_10) | G193: TLM_MODE_10 | H193: =VLOOKUP(G193,List!B:C,2,0) -> 42 | K193: =VLOOKUP(G193,List!B:E,4,0) -> dcsm-EF_BUS_TLM_MODE_10 | L193: =VLOOKUP(G193,List!B:G,6,0) -> 2 | M193: 2022-04-28T00:03:54 | N193: 0000 CALL dcsm-EF_BUS_TLM_MODE_10 -Run | Q193: =+D193-C193 -> 0.0004861111083 | R193: =+C194-C193 -> 0.0004861111083 | S193: 0.01263888889
C194: 2022-04-28T00:09:53 | D194: 2022-04-28T00:28:05 | F194: SI ON | G194: MSA_ON_SETUP_C | H194: =VLOOKUP(G194,List!B:C,2,0) -> 1092 | K194: =VLOOKUP(G194,List!B:E,4,0) -> dcsm-EF_MSA_ON_C | L194: =VLOOKUP(G194,List!B:G,6,0) -> 15 | M194: 2022-04-28T00:04:36 | N194: 0000 CALL dcsm-EF_MSA_ON_C -Run | Q194: 0.01263888889 | R194: 0.01263888889 | S194: =+D195-D194 -> 0.0009259259241
C195: 2022-04-28T00:28:05 | D195: 2022-04-28T00:29:25 | G195: PME_ON | H195: =VLOOKUP(G195,List!B:C,2,0) -> 80 | K195: =VLOOKUP(G195,List!B:E,4,0) -> dcsm-EF_PME_ON | L195: =VLOOKUP(G195,List!B:G,6,0) -> 2 | M195: 2022-04-28T00:22:48 | N195: 0000 CALL dcsm-EF_PME_ON -Run | Q195: 0.0009259259241 | R195: 0.0009259259241 | S195: 0.0001620370385
C196: 2022-04-28T00:29:25 | D196: 2022-04-28T00:29:39 | G196: MGF_ON_SETUP | H196: =VLOOKUP(G196,List!B:C,2,0) -> 14 | K196: =VLOOKUP(G196,List!B:E,4,0) -> dcsm-EF_MGF_ON | L196: =VLOOKUP(G196,List!B:G,6,0) -> 3 | M196: 2022-04-28T00:24:08 | N196: 0000 CALL dcsm-EF_MGF_ON -Run | Q196: 0.0001620370385 | R196: 0.0001620370385 | S196: 0.003379629627
C197: 2022-04-28T00:29:39 | D197: 2022-04-28T00:34:31 | G197: MEA1_ON_SETUP_SW | H197: =VLOOKUP(G197,List!B:C,2,0) -> 292 | K197: =VLOOKUP(G197,List!B:E,4,0) -> dcsm-EF_MEA1_ON_SW | L197: =VLOOKUP(G197,List!B:G,6,0) -> 12 | M197: 2022-04-28T00:24:22 | N197: 0000 CALL dcsm-EF_MEA1_ON_SW -Run | Q197: 0.003379629627 | R197: 0.003379629627 | S197: 0.006527777776
C198: 2022-04-28T00:34:31 | D198: 2022-04-28T00:43:55 | G198: ENA_ON_SETUP | H198: =VLOOKUP(G198,List!B:C,2,0) -> 564 | K198: =VLOOKUP(G198,List!B:E,4,0) -> dcsm-EF_ENA_power_ON | L198: =VLOOKUP(G198,List!B:G,6,0) -> 7 | M198: 2022-04-28T00:29:14 | N198: 0000 CALL dcsm-EF_ENA_power_ON -Run | Q198: 0.006527777776 | R198: 0.006527777776 | S198: 0.004421296297
C199: 2022-04-28T00:43:55 | D199: 2022-04-28T00:50:17 | G199: MIA_ON_SETUP | H199: =VLOOKUP(G199,List!B:C,2,0) -> 382 | K199: =VLOOKUP(G199,List!B:E,4,0) -> dcsm-EF_MIA_ON | L199: =VLOOKUP(G199,List!B:G,6,0) -> 6 | M199: =C199-317/3600/24 -> 2022-04-28T00:38:38 | N199: 0000 CALL dcsm-EF_MIA_ON -Run | Q199: 0.004421296297 | R199: 0.004421296297 | S199: 0.01423611111
C200: 2022-04-28T00:50:17 | D200: 2022-04-28T01:10:47 | G200: HEP_ON_SETUP | H200: =VLOOKUP(G200,List!B:C,2,0) -> 1230 | K200: =VLOOKUP(G200,List!B:E,4,0) -> dcsm-EF_HEP_ON_START_for_TL | L200: =VLOOKUP(G200,List!B:G,6,0) -> 34 | M200: 2022-04-28T00:45:00 | N200: 0000 CALL dcsm-EF_HEP_ON_START_for_TL -Run | Q200: 0.01423611111 | R200: 0.01423611111 | S200: 0.003125000003
C201: =D200 -> 2022-04-28T01:10:47 | D201: 2022-04-28T01:15:17 | F201: SI HV ON | G201: HEP_HV_ON | H201: =VLOOKUP(G201,List!B:C,2,0) -> 270 | K201: =VLOOKUP(G201,List!B:E,4,0) -> dcsm-EF_HEPE_HV_ON_OBS_START | L201: =VLOOKUP(G201,List!B:G,6,0) -> 6 | M201: 2022-04-28T01:05:30 | N201: =+"0000 CALL "&K201&" -Run" -> 0000 CALL dcsm-EF_HEPE_HV_ON_OBS_START -Run | Q201: 0.003125000003 | R201: 0.003125000003 | S201: 0.003981481481
... 139 more rows
